Body Name,Body,Creditor Name,Spending Service,Nature of Spend,Ledger Date,Reference Number,Goods Amount (excluding VAT)
Lancaster City Council,30UH,1 Ace Skips Limited,Resources,R & M - Buildings,31/10/2014,ppc000181,87.50
Lancaster City Council,30UH,2B Hydraulics Ltd,Environmental Services,Repair & Mtce Of Vehicles,09/12/2014,26737,311.00
Lancaster City Council,30UH,Acorn Pressurisation Services,Health & Housing,R & M - Buildings,03/11/2014,bpc001934,335.78
Lancaster City Council,30UH,Adobe,Regeneration and Planning,Services - General,01/10/2014,npc000370,14.29
Lancaster City Council,30UH,Adobe System Sortware,Regeneration and Planning,Services - General,03/11/2014,npc000422,14.29
Lancaster City Council,30UH,Adsa Lancaster,Health & Housing,Equipment and Tools - General,11/11/2014,bpc001974,7.50
Lancaster City Council,30UH,aem leisure,Health & Housing,Equipment and Tools - General,06/10/2014,bpc001801,1720.00
Lancaster City Council,30UH,AEM leisure,Health & Housing,Equipment and Tools - General,06/10/2014,bpc001802,0.00
Lancaster City Council,30UH,AGI,Regeneration and Planning,Office Equipment,11/11/2014,npc000436,17.46
Lancaster City Council,30UH,AHS,Environmental Services,Materials - General,05/11/2014,26184,512.00
Lancaster City Council,30UH,Airkix Manchester,Health & Housing,Services - General,28/10/2014,bpc001881,382.60
Lancaster City Council,30UH,Airkix Manchester,Health & Housing,Services - General,28/10/2014,bpc001882,9.18
Lancaster City Council,30UH,A.J. Exotics and Pet Supplies,Environmental Services,Materials - General,20/10/2014,25892,58.27
Lancaster City Council,30UH,Alex Phillips Printing Service,Health & Housing,Materials - General,18/11/2014,spc000632,288.00
Lancaster City Council,30UH,Amaxon,Health & Housing,Materials - General,24/12/2014,spc000707,55.96
Lancaster City Council,30UH,Amaxon,Health & Housing,Equipment and Tools - General,03/11/2014,bpc001907,66.42
Lancaster City Council,30UH,Amaxon,Health & Housing,Equipment and Tools - General,27/11/2014,bpc002066,95.00
Lancaster City Council,30UH,Amaxon,Health & Housing,Other Cleaning,03/11/2014,bpc001911,81.65
Lancaster City Council,30UH,Amaxon,Health & Housing,Equipment Funded by Reserves,03/12/2014,hpc000153,260.00
Lancaster City Council,30UH,Amaxon,Health & Housing,Materials - General,17/10/2014,spc000570,11.91
Lancaster City Council,30UH,Amaxon,Regeneration and Planning,Management Plan Projects,15/10/2014,npc000400,18.34
Lancaster City Council,30UH,Amaxon,Health & Housing,Equipment and Tools - General,31/10/2014,bpc001896,31.04
Lancaster City Council,30UH,Amaxon,Health & Housing,Equipment and Tools - General,05/11/2014,bpc001956,18.32
Lancaster City Council,30UH,Amaxon,Health & Housing,Equipment and Tools - General,12/12/2014,bpc002152,32.00
Lancaster City Council,30UH,Amaxon,Governance,Printing (Internal),10/11/2014,dpc000217,78.35
Lancaster City Council,30UH,Amazon,Regeneration and Planning,Office Equipment,05/12/2014,26685,5.99
Lancaster City Council,30UH,Amazon,Environmental Services,Equipment and Tools - General,09/12/2014,26735,59.95
Lancaster City Council,30UH,Amazon,Governance,Printing & Stationery,16/10/2014,lpc000161,35.92
Lancaster City Council,30UH,Amazon,Health & Housing,Books & Periodicals,01/12/2014,spc000660,75.63
Lancaster City Council,30UH,Amazon,Health & Housing,Books & Periodicals,01/12/2014,spc000661,75.44
Lancaster City Council,30UH,Amazon,Health & Housing,Books & Periodicals,01/12/2014,spc000662,13.27
Lancaster City Council,30UH,Amazon,Health & Housing,Books & Periodicals,01/12/2014,spc000663,64.36
Lancaster City Council,30UH,Amazon,Health & Housing,Equipment and Tools - General,20/10/2014,spc000574,6.88
Lancaster City Council,30UH,Amazon,Health & Housing,Mobile Telephones,01/10/2014,spc000542,5.72
Lancaster City Council,30UH,Amazon,Resources,Capital Payments To Contractors,26/11/2014,jpc000272,179.99
Lancaster City Council,30UH,Amazon,Resources,Computer Consumables,07/11/2014,jpc000256,155.89
Lancaster City Council,30UH,Amazon,Resources,Computer Consumables,03/12/2014,jpc000275,15.83
Lancaster City Council,30UH,Amazon,Resources,Computer Equipment,20/10/2014,jpc000235,66.62
Lancaster City Council,30UH,Amazon,Resources,Computer Equipment,12/12/2014,jpc000282,12.92
Lancaster City Council,30UH,Amazon,Resources,Computer Equipment,18/12/2014,jpc000285,191.58
Lancaster City Council,30UH,Amazon,Resources,Corporate Safety,09/10/2014,jpc000229,13.32
Lancaster City Council,30UH,Amazon,Resources,Equipment and Tools - General,03/12/2014,jpc000276,90.85
Lancaster City Council,30UH,Amazon,Resources,Equipment and Tools - General,03/12/2014,jpc000278,90.39
Lancaster City Council,30UH,Amazon,Resources,IT Consumables,09/12/2014,jpc000281,82.50
Lancaster City Council,30UH,Amazon,Resources,Mobile Telephones,07/10/2014,jpc000224,101.64
Lancaster City Council,30UH,Amazon,Resources,Mobile Telephones,20/10/2014,jpc000236,25.83
Lancaster City Council,30UH,Amazon,Resources,Mobile Telephones,29/10/2014,jpc000244,26.58
Lancaster City Council,30UH,Amazon,Resources,Mobile Telephones,31/10/2014,jpc000246,26.58
Lancaster City Council,30UH,Amazon,Resources,Mobile Telephones,31/10/2014,jpc000247,27.07
Lancaster City Council,30UH,Amazon,Resources,Mobile Telephones,05/11/2014,jpc000252,26.58
Lancaster City Council,30UH,Amazon,Resources,Mobile Telephones,05/11/2014,jpc000253,26.58
Lancaster City Council,30UH,Amazon,Resources,Mobile Telephones,07/11/2014,jpc000254,26.32
Lancaster City Council,30UH,Amazon,Resources,Mobile Telephones,18/11/2014,jpc000264,12.50
Lancaster City Council,30UH,Amazon,Resources,Mobile Telephones,18/11/2014,jpc000265,28.42
Lancaster City Council,30UH,Amazon,Resources,Mobile Telephones,18/11/2014,jpc000266,56.49
Lancaster City Council,30UH,Amazon,Resources,Mobile Telephones,18/11/2014,jpc000268,12.50
Lancaster City Council,30UH,Amazon,Resources,Mobile Telephones,19/11/2014,jpc000269,12.50
Lancaster City Council,30UH,Amazon,Resources,Mobile Telephones,25/11/2014,jpc000271,12.50
Lancaster City Council,30UH,Amazon,Resources,Mobile Telephones,26/11/2014,jpc000273,12.50
Lancaster City Council,30UH,Amazon,Resources,Mobile Telephones,03/12/2014,jpc000274,16.00
Lancaster City Council,30UH,Amazon,Resources,Mobile Telephones,03/12/2014,jpc000277,90.39
Lancaster City Council,30UH,Amazon,Resources,Office Equipment,13/10/2014,jpc000233,5.21
Lancaster City Council,30UH,Amazon,Resources,Office Equipment,30/10/2014,jpc000245,57.91
Lancaster City Council,30UH,Amazon,Resources,Office Equipment,07/11/2014,jpc000255,471.39
Lancaster City Council,30UH,Amazon,Regeneration and Planning,Equipment and Tools - General,03/11/2014,npc000425,10.94
Lancaster City Council,30UH,Amazon,Regeneration and Planning,Equipment and Tools - General,04/12/2014,npc000469,9.99
Lancaster City Council,30UH,Amazon,Regeneration and Planning,Office Equipment,12/12/2014,npc000481,5.08
Lancaster City Council,30UH,Amazon,Regeneration and Planning,Printing & Stationery,29/10/2014,npc000418,10.15
Lancaster City Council,30UH,Amazon,Regeneration and Planning,Printing & Stationery,18/11/2014,npc000444,5.42
Lancaster City Council,30UH,Amazon,Health & Housing,Equipment Funded by Reserves,08/10/2014,hpc000135,39.98
Lancaster City Council,30UH,Amazon,Health & Housing,Equipment Funded by Reserves,03/12/2014,hpc000154,43.33
Lancaster City Council,30UH,Amazon,Health & Housing,Equipment Funded by Reserves,03/12/2014,hpc000155,33.32
Lancaster City Council,30UH,Amazon,Health & Housing,Printing & Stationery,03/12/2014,hpc000161,6.46
Lancaster City Council,30UH,Amazon,Environmental Services,Mobile Telephones,12/11/2014,26298,37.50
Lancaster City Council,30UH,Amazon,Health & Housing,Equipment and Tools - General,12/12/2014,bpc002150,26.94
Lancaster City Council,30UH,Amazon,Health & Housing,Equipment and Tools - General,12/12/2014,bpc002151,38.00
Lancaster City Council,30UH,Amazon,Health & Housing,Printing & Stationery,12/12/2014,bpc002155,57.00
Lancaster City Council,30UH,Amazon,Health & Housing,Printing & Stationery,18/12/2014,bpc002188,58.39
Lancaster City Council,30UH,Amazon,Health & Housing,Printing & Stationery,18/12/2014,bpc002189,8.97
Lancaster City Council,30UH,Amazon,Health & Housing,Printing & Stationery,18/12/2014,bpc002190,2.99
Lancaster City Council,30UH,Amazon,Health & Housing,Printing & Stationery,18/12/2014,bpc002191,19.48
Lancaster City Council,30UH,Amazon,Health & Housing,Equipment and Tools - General,12/12/2014,bpc002144,11.97
Lancaster City Council,30UH,Amazon,Health & Housing,Printing & Stationery,03/12/2014,bpc002089,7.94
Lancaster City Council,30UH,Amazon,Health & Housing,Equipment and Tools - General,05/12/2014,bpc002111,22.99
Lancaster City Council,30UH,Amazon,Health & Housing,Equipment and Tools - General,12/12/2014,bpc002143,15.78
Lancaster City Council,30UH,Amazon,Health & Housing,Equipment and Tools - General,12/12/2014,bpc002145,16.96
Lancaster City Council,30UH,Amazon,Health & Housing,Hospitality,17/12/2014,bpc002170,70.96
Lancaster City Council,30UH,Amazon,Health & Housing,Hospitality,17/12/2014,bpc002171,70.59
Lancaster City Council,30UH,Amazon,Health & Housing,Printing & Stationery,03/12/2014,bpc002090,15.26
Lancaster City Council,30UH,Amazon,Health & Housing,Printing & Stationery,03/12/2014,bpc002091,18.99
Lancaster City Council,30UH,Amazon,Health & Housing,Printing & Stationery,03/12/2014,bpc002096,31.00
Lancaster City Council,30UH,Amazon,Health & Housing,Printing & Stationery,03/12/2014,bpc002097,31.00
Lancaster City Council,30UH,Amazon,Health & Housing,Printing & Stationery,03/12/2014,bpc002098,23.99
Lancaster City Council,30UH,Amazon,Health & Housing,Printing & Stationery,03/12/2014,bpc002107,57.00
Lancaster City Council,30UH,Amazon,Health & Housing,Printing & Stationery,17/12/2014,bpc002173,14.83
Lancaster City Council,30UH,Amazon,Resources,Infrastructure - Update & Maintenance,06/10/2014,jpc000219,-617.89
Lancaster City Council,30UH,Amazon,Resources,Infrastructure - Update & Maintenance,24/10/2014,jpc000238,1.27
Lancaster City Council,30UH,Amazon,Resources,Capital Payments To Contractors,20/11/2014,jpc000270,-268.34
Lancaster City Council,30UH,Amazon,Health & Housing,Equipment and Tools - General,20/11/2014,bpc001999,18.29
Lancaster City Council,30UH,Amazon,Health & Housing,Equipment and Tools - General,20/11/2014,bpc002000,24.92
Lancaster City Council,30UH,Amazon,Health & Housing,Equipment and Tools - General,20/11/2014,bpc002001,32.00
Lancaster City Council,30UH,Amazon,Health & Housing,Equipment and Tools - General,20/11/2014,bpc002002,19.07
Lancaster City Council,30UH,Amazon,Health & Housing,Equipment and Tools - General,20/11/2014,bpc002007,3.20
Lancaster City Council,30UH,Amazon,Health & Housing,Equipment and Tools - General,20/11/2014,bpc002008,2.04
Lancaster City Council,30UH,Amazon,Health & Housing,Equipment and Tools - General,20/11/2014,bpc002009,79.00
Lancaster City Council,30UH,Amazon,Health & Housing,Equipment and Tools - General,20/11/2014,bpc002010,1.43
Lancaster City Council,30UH,Amazon,Health & Housing,Equipment and Tools - General,21/11/2014,bpc002017,2.04
Lancaster City Council,30UH,Amazon,Health & Housing,Equipment and Tools - General,21/11/2014,bpc002018,79.00
Lancaster City Council,30UH,Amazon,Health & Housing,Equipment and Tools - General,21/11/2014,bpc002019,4.17
Lancaster City Council,30UH,Amazon,Health & Housing,Equipment and Tools - General,21/11/2014,bpc002020,7.96
Lancaster City Council,30UH,Amazon,Health & Housing,Printing & Stationery,20/11/2014,bpc002003,13.85
Lancaster City Council,30UH,Amazon,Regeneration and Planning,Entertainment Fees,02/10/2014,25682,35.75
Lancaster City Council,30UH,Amazon,Governance,Corporate Training Budget,04/11/2014,lpc000170,154.99
Lancaster City Council,30UH,Amazon,Governance,Corporate Training Budget,04/11/2014,lpc000171,18.90
Lancaster City Council,30UH,Amazon,Environmental Services,Materials - General,23/10/2014,25974,10.40
Lancaster City Council,30UH,Amazon,Environmental Services,Equipment and Tools - General,12/11/2014,26299,157.99
Lancaster City Council,30UH,Amazon,Resources,Mobile Telephones,04/11/2014,jpc000250,33.87
Lancaster City Council,30UH,Amazon,Resources,Mobile Telephones,07/11/2014,jpc000257,33.87
Lancaster City Council,30UH,Amazon,Health & Housing,R & M - Buildings,17/12/2014,spc000695,93.99
Lancaster City Council,30UH,Amazon,Health & Housing,Services - General,27/11/2014,bpc002072,58.34
Lancaster City Council,30UH,Amazon,Health & Housing,Materials - General,11/11/2014,spc000616,14.85
Lancaster City Council,30UH,Amazon,Health & Housing,Materials - General,11/11/2014,spc000618,7.19
Lancaster City Council,30UH,Amazon,Resources,Purchase Of Equipment,13/10/2014,jpc000232,838.32
Lancaster City Council,30UH,Amazon,Resources,Purchase Of Equipment,13/11/2014,jpc000263,474.22
Lancaster City Council,30UH,AO.com,Resources,Office Equipment,10/12/2014,rpc000047,128.32
Lancaster City Council,30UH,Appliance Direct,Health & Housing,Equipment and Tools - General,07/10/2014,bpc001809,133.32
Lancaster City Council,30UH,Appliance Direct,Environmental Services,Gas Partnership Agreement,15/10/2014,25846,308.32
Lancaster City Council,30UH,Appliance Direct,Environmental Services,Other Construction Costs,15/10/2014,25847,158.32
Lancaster City Council,30UH,Appliance Direct,Health & Housing,Equipment Funded by Reserves,03/12/2014,hpc000150,154.16
Lancaster City Council,30UH,Appliance Direct,Health & Housing,Equipment Funded by Reserves,03/12/2014,hpc000151,154.16
Lancaster City Council,30UH,Appliance Direct,Health & Housing,Equipment Funded by Reserves,03/12/2014,hpc000152,149.99
Lancaster City Council,30UH,Applied Business Techniques LT,Health & Housing,Exhibitions & Events,27/11/2014,bpc002036,70.92
Lancaster City Council,30UH,Approved Inspectors Limited,Health & Housing,Capital Grants,04/12/2014,spc000672,750.00
Lancaster City Council,30UH,APPS,Health & Housing,Materials - General,10/12/2014,spc000685,427.75
Lancaster City Council,30UH,Argos,Health & Housing,Cleaning Materials,05/12/2014,bpc002112,189.99
Lancaster City Council,30UH,Argos,Health & Housing,Computer Consumables,04/11/2014,bpc001946,14.24
Lancaster City Council,30UH,Argos,Health & Housing,Equipment and Tools - General,24/11/2014,bpc002031,7.90
Lancaster City Council,30UH,Argos,Health & Housing,Equipment and Tools - General,16/12/2014,bpc002160,139.50
Lancaster City Council,30UH,Argos,Health & Housing,Services - General,18/11/2014,bpc001992,102.52
Lancaster City Council,30UH,Argos,Environmental Services,Entertainment Fees,14/12/2014,26800,-16.66
Lancaster City Council,30UH,Argos,Environmental Services,Entertainment Fees,14/12/2014,26801,16.66
Lancaster City Council,30UH,Argos,Environmental Services,Hospitality,14/12/2014,26798,9.97
Lancaster City Council,30UH,Argos,Environmental Services,R & M - Buildings,17/11/2014,26335,114.77
Lancaster City Council,30UH,Argos,Health & Housing,Homelessness Priority Need Order,29/10/2014,spc000588,47.88
Lancaster City Council,30UH,Argos,Health & Housing,Homelessness Priority Need Order,06/11/2014,spc000605,18.99
Lancaster City Council,30UH,Argos,Health & Housing,Homelessness Priority Need Order,10/11/2014,spc000611,58.05
Lancaster City Council,30UH,Argos,Health & Housing,Homelessness Priority Need Order,11/11/2014,spc000613,32.93
Lancaster City Council,30UH,Argos,Health & Housing,Homelessness Priority Need Order,12/12/2014,spc000687,53.39
Lancaster City Council,30UH,Argos,Health & Housing,Homelessness Priority Need Order,12/12/2014,spc000689,50.43
Lancaster City Council,30UH,Argos,Regeneration and Planning,Computer Consumables,23/12/2014,npc000495,9.49
Lancaster City Council,30UH,Argos,Resources,Fixtures & Fittings - General,02/10/2014,rpc000037,83.32
Lancaster City Council,30UH,Argos,Resources,Fixtures & Fittings - General,11/12/2014,rpc000048,48.32
Lancaster City Council,30UH,Argos,Health & Housing,Equipment and Tools - General,06/10/2014,bpc001800,53.25
Lancaster City Council,30UH,Ark Stores Ltd,Health & Housing,Equipment and Tools - General,26/11/2014,spc000651,40.00
Lancaster City Council,30UH,ARROW CHEMICALS,Environmental Services,Materials - General,12/11/2014,26300,176.54
Lancaster City Council,30UH,ASA,Health & Housing,Materials For Resale,08/12/2014,bpc002122,137.26
Lancaster City Council,30UH,ASA - Shop,Health & Housing,Materials For Resale,09/10/2014,bpc001812,23.75
Lancaster City Council,30UH,ASA - Shop,Health & Housing,Materials For Resale,09/10/2014,bpc001815,41.90
Lancaster City Council,30UH,ASA - Shop,Health & Housing,Materials For Resale,09/10/2014,bpc001817,81.80
Lancaster City Council,30UH,Asda,Health & Housing,Equipment and Tools - General,01/10/2014,bpc001762,16.67
Lancaster City Council,30UH,Asda,Health & Housing,Equipment and Tools - General,01/10/2014,bpc001763,10.00
Lancaster City Council,30UH,Asda,Health & Housing,Equipment and Tools - General,03/11/2014,bpc001909,5.83
Lancaster City Council,30UH,Asda,Health & Housing,Materials For Resale,01/10/2014,bpc001765,4.50
Lancaster City Council,30UH,Asda,Health & Housing,Materials For Resale,01/10/2014,bpc001769,15.00
Lancaster City Council,30UH,Asda,Health & Housing,Materials For Resale,18/10/2014,bpc001861,25.04
Lancaster City Council,30UH,Asda,Health & Housing,Materials For Resale,21/10/2014,bpc001864,33.96
Lancaster City Council,30UH,Asda,Health & Housing,Materials For Resale,01/11/2014,bpc001903,74.49
Lancaster City Council,30UH,Asda,Health & Housing,Materials For Resale,01/11/2014,bpc001905,38.48
Lancaster City Council,30UH,Asda,Health & Housing,Materials For Resale,27/11/2014,bpc002037,22.50
Lancaster City Council,30UH,Asda,Health & Housing,Materials For Resale,27/11/2014,bpc002038,42.37
Lancaster City Council,30UH,Asda,Health & Housing,Materials For Resale,27/11/2014,bpc002039,48.00
Lancaster City Council,30UH,Asda,Health & Housing,Materials For Resale,27/11/2014,bpc002040,36.68
Lancaster City Council,30UH,Asda,Health & Housing,Materials For Resale,27/11/2014,bpc002041,46.99
Lancaster City Council,30UH,Asda,Health & Housing,Materials For Resale,27/11/2014,bpc002043,43.62
Lancaster City Council,30UH,Asda,Health & Housing,Materials For Resale,27/11/2014,bpc002045,34.97
Lancaster City Council,30UH,Asda,Health & Housing,Materials For Resale,27/11/2014,bpc002047,12.01
Lancaster City Council,30UH,Asda,Health & Housing,Materials For Resale,03/12/2014,bpc002104,7.33
Lancaster City Council,30UH,Asda,Health & Housing,Petrol & Derv,01/10/2014,bpc001767,9.73
Lancaster City Council,30UH,Asda,Health & Housing,Equipment and Tools - General,08/10/2014,bpc001811,16.67
Lancaster City Council,30UH,Asda,Health & Housing,Equipment and Tools - General,10/11/2014,bpc001967,5.83
Lancaster City Council,30UH,Asda,Health & Housing,Equipment and Tools - General,15/12/2014,bpc002157,16.00
Lancaster City Council,30UH,Asda,Health & Housing,Equipment and Tools - General,18/12/2014,bpc002181,110.55
Lancaster City Council,30UH,Asda,Health & Housing,Equipment and Tools - General,31/12/2014,bpc002200,5.00
Lancaster City Council,30UH,Asda,Health & Housing,Materials For Resale,13/10/2014,bpc001836,7.16
Lancaster City Council,30UH,Asda,Health & Housing,Materials For Resale,13/10/2014,bpc001839,4.50
Lancaster City Council,30UH,Asda,Health & Housing,Materials For Resale,13/10/2014,bpc001841,53.06
Lancaster City Council,30UH,Asda,Health & Housing,Materials For Resale,04/11/2014,bpc001949,5.00
Lancaster City Council,30UH,Asda,Health & Housing,Materials For Resale,04/11/2014,bpc001952,15.62
Lancaster City Council,30UH,Asda,Health & Housing,Materials For Resale,04/11/2014,bpc001954,26.97
Lancaster City Council,30UH,Asda,Health & Housing,Materials For Resale,27/11/2014,bpc002048,36.33
Lancaster City Council,30UH,Asda,Health & Housing,Materials For Resale,27/11/2014,bpc002051,25.86
Lancaster City Council,30UH,Asda,Health & Housing,Materials For Resale,27/11/2014,bpc002059,23.78
Lancaster City Council,30UH,Asda,Health & Housing,Materials For Resale,01/12/2014,bpc002080,6.56
Lancaster City Council,30UH,Asda,Health & Housing,Materials For Resale,05/12/2014,bpc002116,39.05
Lancaster City Council,30UH,Asda,Health & Housing,Materials For Resale,22/12/2014,bpc002193,12.00
Lancaster City Council,30UH,Asda,Health & Housing,Materials For Resale,31/12/2014,bpc002200,13.00
Lancaster City Council,30UH,Asda,Health & Housing,Materials For Resale,31/12/2014,bpc002201,10.20
Lancaster City Council,30UH,Asda,Health & Housing,Office Equipment,23/10/2014,bpc001875,14.17
Lancaster City Council,30UH,Asda,Health & Housing,Services - General,31/10/2014,bpc001902,13.33
Lancaster City Council,30UH,Asda,Health & Housing,Equipment Funded by Reserves,01/10/2014,hpc000134,34.17
Lancaster City Council,30UH,Asda,Health & Housing,Tenants Participation,19/11/2014,hpc000145,21.90
Lancaster City Council,30UH,Asda,Regeneration and Planning,Services - General,06/10/2014,npc000377,4.00
Lancaster City Council,30UH,Asda,Health & Housing,Equipment and Tools - General,27/11/2014,bpc002063,5.83
Lancaster City Council,30UH,Asda,Health & Housing,Materials For Resale,31/12/2014,bpc002197,6.67
Lancaster City Council,30UH,Asda,Environmental Services,Equipment and Tools - General,06/11/2014,26214,5.83
Lancaster City Council,30UH,Asda,Environmental Services,Materials - General,22/10/2014,25963,26.96
Lancaster City Council,30UH,Asda,Environmental Services,Prizes,06/11/2014,26215,9.17
Lancaster City Council,30UH,Asda,Health & Housing,Equipment and Tools - General,03/11/2014,bpc001936,63.00
Lancaster City Council,30UH,Asda,Health & Housing,Equipment and Tools - General,03/11/2014,bpc001938,62.79
Lancaster City Council,30UH,Asda,Health & Housing,Equipment and Tools - General,08/12/2014,bpc002126,23.96
Lancaster City Council,30UH,Asda,Health & Housing,Equipment and Tools - General,08/12/2014,bpc002127,-23.96
Lancaster City Council,30UH,Asda,Health & Housing,Equipment and Tools - General,08/12/2014,bpc002128,9.00
Lancaster City Council,30UH,Asda,Health & Housing,Equipment and Tools - General,08/12/2014,bpc002129,15.00
Lancaster City Council,30UH,Asda,Environmental Services,Fuel Oil,08/12/2014,26711,16.00
Lancaster City Council,30UH,Asda,Health & Housing,Equipment and Tools - General,21/10/2014,bpc001870,6.91
Lancaster City Council,30UH,Asda,Health & Housing,Equipment and Tools - General,21/10/2014,bpc001871,22.50
Lancaster City Council,30UH,Asda,Environmental Services,Materials For Resale,20/10/2014,25896,4.74
Lancaster City Council,30UH,Aspli Safety Ltd,Environmental Services,Health And Safety,12/11/2014,26766,9.36
Lancaster City Council,30UH,Atkinson & Co,Regeneration and Planning,Materials For Resale,01/12/2014,26750,97.50
Lancaster City Council,30UH,Averys,Regeneration and Planning,AONB Executive Support,22/12/2014,npc000492,5.91
Lancaster City Council,30UH,Averys,Regeneration and Planning,Misc. Energy Charges,22/12/2014,npc000493,3.03
Lancaster City Council,30UH,Averys,Regeneration and Planning,Printing & Stationery,22/12/2014,npc000494,6.32
Lancaster City Council,30UH,Averys,Regeneration and Planning,AONB Executive Support,13/10/2014,npc000393,1.31
Lancaster City Council,30UH,Averys,Regeneration and Planning,AONB Executive Support,13/10/2014,npc000396,14.26
Lancaster City Council,30UH,Averys,Regeneration and Planning,Printing & Stationery,13/10/2014,npc000394,13.80
Lancaster City Council,30UH,Averys,Regeneration and Planning,Printing & Stationery,13/10/2014,npc000395,6.32
Lancaster City Council,30UH,Averys,Regeneration and Planning,AONB Executive Support,13/11/2014,npc000439,7.87
Lancaster City Council,30UH,Averys,Regeneration and Planning,Printing & Stationery,13/11/2014,npc000440,12.72
Lancaster City Council,30UH,AVonics,Health & Housing,Equipment and Tools - General,13/10/2014,bpc001849,251.67
Lancaster City Council,30UH,AXMINSTER TOOLS,Environmental Services,Capital Payments To Contractors,05/11/2014,26186,110.80
Lancaster City Council,30UH,Baker Ross,Environmental Services,Equipment and Tools - General,17/11/2014,26337,81.93
Lancaster City Council,30UH,B&M,Regeneration and Planning,Sundry Expenses,03/12/2014,26651,14.14
Lancaster City Council,30UH,B&M ,Environmental Services,Hospitality,12/11/2014,26302,3.38
Lancaster City Council,30UH,B&M ,Health & Housing,Materials - General,31/10/2014,bpc001895,2.48
Lancaster City Council,30UH,B&M ,Regeneration and Planning,Equipment and Tools - General,02/12/2014,npc000464,12.47
Lancaster City Council,30UH,B&M ,Regeneration and Planning,Equipment and Tools - General,02/12/2014,npc000466,29.98
Lancaster City Council,30UH,B&M ,Environmental Services,Equipment and Tools - General,09/12/2014,26732,13.33
Lancaster City Council,30UH,B&M ,Environmental Services,Equipment and Tools - General,14/10/2014,25836,33.33
Lancaster City Council,30UH,B&M ,Environmental Services,Printing & Stationery,25/11/2014,26470,0.82
Lancaster City Council,30UH,B&M ,Environmental Services,Equipment and Tools - General,19/12/2014,26880,51.54
Lancaster City Council,30UH,b and h midland services,Health & Housing,Equipment and Tools - General,27/11/2014,bpc002068,118.14
Lancaster City Council,30UH,B&Q,Health & Housing,Tenants Participation,08/10/2014,hpc000136,295.83
Lancaster City Council,30UH,B&Q,Resources,Office Equipment,04/12/2014,fpc000070,38.00
Lancaster City Council,30UH,battery force,Health & Housing,Equipment and Tools - General,28/11/2014,bpc002077,23.90
Lancaster City Council,30UH,Bay Vets Ltd,Environmental Services,Services - Vets,17/11/2014,26345,143.12
Lancaster City Council,30UH,Beachbody.co.uk,Health & Housing,Service Training Budget,06/10/2014,bpc001804,165.83
Lancaster City Council,30UH,Beachbody.co.uk,Health & Housing,Service Training Budget,06/10/2014,bpc001805,165.83
Lancaster City Council,30UH,Beachbody.co.uk,Health & Housing,Service Training Budget,06/10/2014,bpc001806,165.83
Lancaster City Council,30UH,Beachbody.co.uk,Health & Housing,Service Training Budget,06/10/2014,bpc001807,165.83
Lancaster City Council,30UH,Beachbody.co.uk,Health & Housing,Service Training Budget,16/12/2014,bpc002161,20.79
Lancaster City Council,30UH,Beachbody.co.uk,Health & Housing,Service Training Budget,21/10/2014,bpc001869,41.58
Lancaster City Council,30UH,Best4Systems,Health & Housing,IT Consumables,03/11/2014,spc000593,95.00
Lancaster City Council,30UH,Best4Systems,Resources,Office Equipment,24/10/2014,rpc000040,149.00
Lancaster City Council,30UH,BFINTERNET,Regeneration and Planning,Marketing,13/10/2014,npc000391,159.00
Lancaster City Council,30UH,BHMA,Health & Housing,Printing & Stationery,13/10/2014,bpc001840,10.60
Lancaster City Council,30UH,BHMA,Health & Housing,Printing & Stationery,13/10/2014,bpc001843,10.60
Lancaster City Council,30UH,Big Brown Carrier Bag Supplier,Regeneration and Planning,Printing & Stationery,17/11/2014,26348,34.20
Lancaster City Council,30UH,Birmingham City Council,Health & Housing,Service Training Budget,09/10/2014,spc000558,150.00
Lancaster City Council,30UH,Blackburn College,Resources,Service Training Budget,02/10/2014,ppc000172,900.00
Lancaster City Council,30UH,Blackburn College,Resources,Service Training Budget,03/11/2014,ppc000185,-900.00
Lancaster City Council,30UH,Blackpool and Fylde College,Resources,Service Training Budget,19/11/2014,ppc000194,1445.00
Lancaster City Council,30UH,BLANCOS,Environmental Services,Materials - General,18/12/2014,26867,12.25
Lancaster City Council,30UH,BLANCOS,Environmental Services,Materials - General,06/11/2014,26211,8.75
Lancaster City Council,30UH,BLANCOS,Environmental Services,Materials - General,21/11/2014,26442,7.45
Lancaster City Council,30UH,Booker,Health & Housing,Materials For Resale,01/10/2014,bpc001789,490.49
Lancaster City Council,30UH,Booker,Environmental Services,Clothing & Uniforms,27/10/2014,25998,5.49
Lancaster City Council,30UH,Booker,Environmental Services,Equipment and Tools - General,20/10/2014,25891,53.83
Lancaster City Council,30UH,Booker,Environmental Services,Equipment and Tools - General,27/10/2014,25998,110.86
Lancaster City Council,30UH,Booker,Environmental Services,Equipment and Tools - General,17/11/2014,26338,111.11
Lancaster City Council,30UH,Booker,Environmental Services,Exhibitions & Events,22/12/2014,26897,129.29
Lancaster City Council,30UH,Booker,Environmental Services,Materials For Resale,20/10/2014,25891,489.52
Lancaster City Council,30UH,Booker,Environmental Services,Materials For Resale,27/10/2014,25998,276.70
Lancaster City Council,30UH,Booker,Environmental Services,Materials For Resale,17/11/2014,26338,460.59
Lancaster City Council,30UH,Booker,Environmental Services,Materials For Resale,24/11/2014,26462,381.86
Lancaster City Council,30UH,Booker,Environmental Services,Materials For Resale,19/12/2014,26883,298.59
Lancaster City Council,30UH,Booker,Environmental Services,Materials For Resale,22/12/2014,26897,332.00
Lancaster City Council,30UH,Booker,Regeneration and Planning,Bar Supplies,10/12/2014,npc000478,318.68
Lancaster City Council,30UH,Booker,Regeneration and Planning,Catering Provisions,18/12/2014,npc000487,20.98
Lancaster City Council,30UH,Booker,Regeneration and Planning,Catering Provisions,18/12/2014,npc000488,33.35
Lancaster City Council,30UH,Booker,Environmental Services,Materials For Resale,01/10/2014,25659,264.48
Lancaster City Council,30UH,Bookers,Health & Housing,Materials For Resale,21/10/2014,bpc001865,60.61
Lancaster City Council,30UH,Bookers,Health & Housing,Materials For Resale,21/10/2014,bpc001867,116.76
Lancaster City Council,30UH,Bookers,Health & Housing,Materials For Resale,21/10/2014,bpc001868,96.58
Lancaster City Council,30UH,Bookers,Health & Housing,Materials For Resale,10/11/2014,bpc001971,46.75
Lancaster City Council,30UH,Bookers,Health & Housing,Materials For Resale,10/11/2014,bpc001972,86.91
Lancaster City Council,30UH,Bookers,Health & Housing,Materials For Resale,27/11/2014,bpc002049,161.49
Lancaster City Council,30UH,Bookers,Health & Housing,Materials For Resale,28/11/2014,bpc002078,12.75
Lancaster City Council,30UH,Bookers,Health & Housing,Materials - General,10/11/2014,bpc001973,71.97
Lancaster City Council,30UH,Bookers,Health & Housing,Vending Machine Supplies,21/10/2014,bpc001863,435.29
Lancaster City Council,30UH,Bookers,Health & Housing,Vending Machine Supplies,21/10/2014,bpc001866,321.86
Lancaster City Council,30UH,Bookers,Health & Housing,Vending Machine Supplies,27/11/2014,bpc002052,328.82
Lancaster City Council,30UH,Bookers,Health & Housing,Equipment and Tools - General,18/12/2014,bpc002179,102.75
Lancaster City Council,30UH,Bookers,Health & Housing,Equipment and Tools - General,18/12/2014,bpc002184,42.93
Lancaster City Council,30UH,Bookers,Health & Housing,Equipment and Tools - General,31/12/2014,bpc002203,31.48
Lancaster City Council,30UH,Bookers,Health & Housing,Materials For Resale,09/10/2014,bpc001814,373.58
Lancaster City Council,30UH,Bookers,Health & Housing,Materials For Resale,10/10/2014,bpc001832,151.03
Lancaster City Council,30UH,Bookers,Health & Housing,Materials For Resale,13/10/2014,bpc001837,20.98
Lancaster City Council,30UH,Bookers,Health & Housing,Materials For Resale,13/10/2014,bpc001848,181.77
Lancaster City Council,30UH,Bookers,Health & Housing,Materials For Resale,10/11/2014,bpc001964,40.10
Lancaster City Council,30UH,Bookers,Health & Housing,Materials For Resale,10/11/2014,bpc001966,54.94
Lancaster City Council,30UH,Bookers,Health & Housing,Materials For Resale,12/11/2014,bpc001980,268.30
Lancaster City Council,30UH,Bookers,Health & Housing,Materials For Resale,12/11/2014,bpc001981,373.87
Lancaster City Council,30UH,Bookers,Health & Housing,Materials For Resale,17/11/2014,bpc001991,117.68
Lancaster City Council,30UH,Bookers,Health & Housing,Materials For Resale,27/11/2014,bpc002044,159.42
Lancaster City Council,30UH,Bookers,Health & Housing,Materials For Resale,27/11/2014,bpc002055,132.65
Lancaster City Council,30UH,Bookers,Health & Housing,Materials For Resale,27/11/2014,bpc002057,32.74
Lancaster City Council,30UH,Bookers,Health & Housing,Materials For Resale,27/11/2014,bpc002058,88.78
Lancaster City Council,30UH,Bookers,Health & Housing,Materials For Resale,27/11/2014,bpc002060,7.69
Lancaster City Council,30UH,Bookers,Health & Housing,Materials For Resale,27/11/2014,bpc002061,155.21
Lancaster City Council,30UH,Bookers,Health & Housing,Materials For Resale,18/12/2014,bpc002179,77.96
Lancaster City Council,30UH,Bookers,Health & Housing,Materials For Resale,18/12/2014,bpc002180,55.24
Lancaster City Council,30UH,Bookers,Health & Housing,Materials For Resale,18/12/2014,bpc002184,36.97
Lancaster City Council,30UH,Bookers,Health & Housing,Materials For Resale,31/12/2014,bpc002203,103.06
Lancaster City Council,30UH,Bookers,Health & Housing,Materials - General,10/11/2014,bpc001965,28.41
Lancaster City Council,30UH,Bookers,Health & Housing,Materials - General,10/11/2014,bpc001966,6.79
Lancaster City Council,30UH,Bookers,Health & Housing,Materials - General,27/11/2014,bpc002061,64.03
Lancaster City Council,30UH,Bookers,Health & Housing,Vending Machine Supplies,27/11/2014,bpc002046,1123.59
Lancaster City Council,30UH,Bookers,Health & Housing,Vending Machine Supplies,27/11/2014,bpc002056,529.53
Lancaster City Council,30UH,Bookers,Health & Housing,Vending Machine Supplies,18/12/2014,bpc002180,340.30
Lancaster City Council,30UH,Bookers,Health & Housing,Vending Machine Supplies,18/12/2014,bpc002184,44.44
Lancaster City Council,30UH,Bookers,Health & Housing,Vending Machine Supplies,31/12/2014,bpc002203,42.56
Lancaster City Council,30UH,Bookers,Regeneration and Planning,Entertainment Fees,04/11/2014,26166,40.36
Lancaster City Council,30UH,Bookers,Regeneration and Planning,Bar Supplies,06/10/2014,npc000381,225.48
Lancaster City Council,30UH,Bookers,Regeneration and Planning,Bar Supplies,20/11/2014,npc000448,548.36
Lancaster City Council,30UH,Bookers ,Health & Housing,Materials For Resale,03/11/2014,bpc001941,229.99
Lancaster City Council,30UH,Bookers ,Regeneration and Planning,Bar Supplies,30/10/2014,npc000419,334.53
Lancaster City Council,30UH,Bookers ,Regeneration and Planning,Bar Supplies,27/10/2014,npc000416,286.58
Lancaster City Council,30UH,Booths supermarket,Health & Housing,Tenants Participation,19/11/2014,hpc000146,9.16
Lancaster City Council,30UH,Borderloos,Regeneration and Planning,Management Plan Projects,15/10/2014,npc000398,29.50
Lancaster City Council,30UH,Borderloos,Regeneration and Planning,Management Plan Projects,20/10/2014,npc000404,88.50
Lancaster City Council,30UH,Bowling Green Service Station,Health & Housing,Contracted Services,19/11/2014,spc000639,60.00
Lancaster City Council,30UH,Bowling Green Service Station,Environmental Services,Fuel Oil,14/10/2014,25838,39.60
Lancaster City Council,30UH,Bowling Green Service Station,Environmental Services,Fuel Oil,28/11/2014,26544,41.30
Lancaster City Council,30UH,Box.co.uk,Resources,Office Equipment,08/10/2014,jpc000226,228.82
Lancaster City Council,30UH,Box.co.uk,Resources,Office Equipment,10/10/2014,jpc000231,550.83
Lancaster City Council,30UH,Box.co.uk,Resources,Office Equipment,02/10/2014,rpc000036,207.62
Lancaster City Council,30UH,Breg Products Ltd,Health & Housing,Equipment and Tools - General,17/12/2014,bpc002175,273.60
Lancaster City Council,30UH,British Gas,Environmental Services,Electricity,17/12/2014,26828,533.00
Lancaster City Council,30UH,British Gas Business,Environmental Services,Electricity,18/11/2014,26358,533.32
Lancaster City Council,30UH,British Gymnastics,Health & Housing,Materials For Resale,03/11/2014,bpc001940,102.95
Lancaster City Council,30UH,British Red Cross,Regeneration and Planning,Management Plan Projects,13/11/2014,npc000441,130.00
Lancaster City Council,30UH,British Telecommunications plc,Health & Housing,Telephones,31/10/2014,bpc001897,91.04
Lancaster City Council,30UH,British Telecommunications plc,Health & Housing,Telephones,30/10/2014,bpc001894,214.06
Lancaster City Council,30UH,BRIT-TIPP LTD,Environmental Services,Repair & Mtce Of Vehicles,03/11/2014,26099,720.00
Lancaster City Council,30UH,BRIT-TIPP LTD,Environmental Services,Repair & Mtce Of Vehicles,03/11/2014,26103,25.92
Lancaster City Council,30UH,Broxap Ltd,Environmental Services,Grounds Maintenance - Other,24/10/2014,25981,45.00
Lancaster City Council,30UH,Bryan Hoggarth Ltd,Environmental Services,Contract Maintenance,24/10/2014,25988,240.00
Lancaster City Council,30UH,BSI,Health & Housing,Equipment and Tools - General,10/10/2014,spc000562,96.00
Lancaster City Council,30UH,BSI,Health & Housing,Equipment and Tools - General,14/11/2014,spc000623,109.00
Lancaster City Council,30UH,BT,Environmental Services,Telephones,28/11/2014,26548,22.67
Lancaster City Council,30UH,BT,Regeneration and Planning,Telephones,13/10/2014,npc000389,84.00
Lancaster City Council,30UH,BT,Regeneration and Planning,Telephones,28/11/2014,npc000460,197.55
Lancaster City Council,30UH,BT Business Direct Ltd,Resources,Infrastructure - Update & Maintenance,23/12/2014,jpc000284,8.22
Lancaster City Council,30UH,Burlington Uniforms Limited,Environmental Services,Clothing & Uniforms,28/10/2014,26029,-73.00
Lancaster City Council,30UH,Burlington Uniforms Limited,Environmental Services,Clothing & Uniforms,19/11/2014,26383,119.50
Lancaster City Council,30UH,Burlington Uniforms Limited,Environmental Services,Clothing & Uniforms,19/11/2014,26384,-119.50
Lancaster City Council,30UH,Burlington Uniforms Ltd,Regeneration and Planning,Clothing & Uniforms,17/10/2014,25877,121.30
Lancaster City Council,30UH,Business Continuity Institute,Health & Housing,Services - Civil Contingencies,08/12/2014,spc000676,80.00
Lancaster City Council,30UH,Cadassit,Resources,Software Miscellaneous,04/11/2014,jpc000251,180.00
Lancaster City Council,30UH,Cairndale,Regeneration and Planning,Printing & Stationery,05/11/2014,26254,278.50
Lancaster City Council,30UH,Canford Audio PLC,Health & Housing,Equipment and Tools - General,14/10/2014,spc000564,90.00
Lancaster City Council,30UH,CAPT Shop,Health & Housing,Children & Young People,03/12/2014,bpc002086,68.90
Lancaster City Council,30UH,cartridge shop,Resources,IT Consumables,27/10/2014,fpc000064,36.48
Lancaster City Council,30UH,Cell Pack Solutions,Health & Housing,Equipment and Tools - General,29/10/2014,bpc001884,70.14
Lancaster City Council,30UH,CEWB LOOIAS,Health & Housing,Clothing & Uniforms,17/12/2014,bpc002174,136.80
Lancaster City Council,30UH,Cheaper Online LTD,Health & Housing,Services - General,27/11/2014,bpc002073,77.21
Lancaster City Council,30UH,christmasworld.com,Health & Housing,Equipment and Tools - General,16/10/2014,bpc001859,148.33
Lancaster City Council,30UH,CIEH,Health & Housing,Service Training Budget,15/12/2014,spc000690,-270.00
Lancaster City Council,30UH,Cipfa,Resources,Conferences & Seminars,27/10/2014,fpc000059,90.00
Lancaster City Council,30UH,Cipfa,Resources,Professional Fees Etc,05/12/2014,fpc000074,310.00
Lancaster City Council,30UH,Cipfa,Resources,Professional Fees Etc,05/12/2014,fpc000075,310.00
Lancaster City Council,30UH,Cipfa,Resources,Professional Fees Etc,05/12/2014,fpc000076,310.00
Lancaster City Council,30UH,City Electrical Factors,Environmental Services,Equipment and Tools - General,27/11/2014,26526,42.41
Lancaster City Council,30UH,CJ Papers,Regeneration and Planning,Materials For Resale,01/12/2014,26910,8.00
Lancaster City Council,30UH,CJ Papers,Regeneration and Planning,Printing & Stationery,05/11/2014,26199,18.00
Lancaster City Council,30UH,Classic Engraving,Regeneration and Planning,R & M - Sea & River / Promenade,06/10/2014,npc000376,33.33
Lancaster City Council,30UH,Classic Engraving,Regeneration and Planning,R & M - Sea & River / Promenade,16/12/2014,npc000489,33.33
Lancaster City Council,30UH,Clean Sweep UK,Health & Housing,Cleaning Materials,05/12/2014,bpc002113,28.27
Lancaster City Council,30UH,Cleggs,Environmental Services,Materials For Resale,18/11/2014,26365,198.29
Lancaster City Council,30UH,Cleggs,Environmental Services,Materials For Resale,22/12/2014,26892,232.15
Lancaster City Council,30UH,Cleggs Chilled Food Service,Environmental Services,Materials For Resale,20/10/2014,25900,280.09
Lancaster City Council,30UH,Cleverbridge,Resources,Computer Equipment,18/11/2014,jpc000267,181.50
Lancaster City Council,30UH,CLICK A DEAL (AMAZON),Health & Housing,Printing & Stationery,03/11/2014,hpc000142,33.96
Lancaster City Council,30UH,Clothes2Order.com,Health & Housing,Clothing & Uniforms,13/10/2014,bpc001846,124.00
Lancaster City Council,30UH,Coles Hardware,Health & Housing,Contracted Services,21/11/2014,spc000646,21.67
Lancaster City Council,30UH,Collins and locksmith preston,Health & Housing,Materials - General,13/10/2014,bpc001835,177.71
Lancaster City Council,30UH,Comodo Ltd,Resources,Infrastructure - Update & Maintenance,12/11/2014,jpc000261,548.00
Lancaster City Council,30UH,Companies House,Resources,Legal & Court Costs,20/10/2014,rpc000039,1.00
Lancaster City Council,30UH,Connies Kitchen,Regeneration and Planning,Materials For Resale,01/12/2014,26742,77.20
Lancaster City Council,30UH,Co-Op,Health & Housing,System Suspense Account    018,16/12/2014,bpc002162,4.32
Lancaster City Council,30UH,Co-Op,Health & Housing,Contracted Services,07/10/2014,spc000553,98.00
Lancaster City Council,30UH,Copthorne / Millennium Hotels,Resources,Service Training Budget,03/11/2014,jpc000248,119.99
Lancaster City Council,30UH,Cordee,Regeneration and Planning,Materials For Resale,03/11/2014,26109,129.84
Lancaster City Council,30UH,Correct Flow,Health & Housing,Chemicals,04/11/2014,bpc001944,396.68
Lancaster City Council,30UH,Correct Flow,Health & Housing,Chemicals,08/12/2014,bpc002125,33.02
Lancaster City Council,30UH,Correct Flow,Health & Housing,Materials For Resale,22/10/2014,bpc001873,64.57
Lancaster City Council,30UH,Countrystyle Meats Farmshop,Environmental Services,Materials For Resale,20/10/2014,25895,956.18
Lancaster City Council,30UH,Countrystyle Meats Farmshop,Environmental Services,Materials For Resale,01/12/2014,26564,788.48
Lancaster City Council,30UH,Createsend.com,Regeneration and Planning,Marketing,04/12/2014,npc000470,17.84
Lancaster City Council,30UH,Createsend.com,Regeneration and Planning,Marketing,15/10/2014,npc000397,17.75
Lancaster City Council,30UH,Croner,Health & Housing,Corporate Safety,04/12/2014,spc000671,500.00
Lancaster City Council,30UH,Currys,Environmental Services,Office Equipment,09/12/2014,26720,103.33
Lancaster City Council,30UH,Currys,Health & Housing,Equipment and Tools - General,07/11/2014,spc000608,249.99
Lancaster City Council,30UH,Currys,Resources,Fixtures & Fittings - General,03/10/2014,ppc000173,91.66
Lancaster City Council,30UH,Dale Sauna Ltd,Health & Housing,R & M - Buildings,03/12/2014,bpc002087,276.00
Lancaster City Council,30UH,Dale Sauna Ltd,Health & Housing,Equipment Operating Leases,18/12/2014,bpc002185,3588.03
Lancaster City Council,30UH,Daniel Thwaites,Regeneration and Planning,Bar Supplies,08/12/2014,npc000477,351.68
Lancaster City Council,30UH,Daniel Thwaites,Regeneration and Planning,Bar Supplies,17/12/2014,npc000486,530.03
Lancaster City Council,30UH,Daniel Thwaites,Regeneration and Planning,Bar Supplies,06/11/2014,npc000432,259.42
Lancaster City Council,30UH,David Willan,Health & Housing,Materials For Resale,20/10/2014,bpc001862,692.75
Lancaster City Council,30UH,David Willan,Environmental Services,Materials For Resale,24/11/2014,26458,658.76
Lancaster City Council,30UH,David Willan,Environmental Services,Materials For Resale,22/12/2014,26893,457.43
Lancaster City Council,30UH,dazzle the party store,Health & Housing,Equipment and Tools - General,03/11/2014,bpc001921,9.97
Lancaster City Council,30UH,DBS Scotland,Governance,C. R. B. Costs,07/10/2014,lpc000154,25.00
Lancaster City Council,30UH,DBS Scotland,Governance,C. R. B. Costs,07/10/2014,lpc000157,25.00
Lancaster City Council,30UH,Dell,Resources,Computer Consumables,04/12/2014,jpc000279,543.30
Lancaster City Council,30UH,Dell,Resources,Equipment Funded by Reserves,12/11/2014,jpc000262,455.85
Lancaster City Council,30UH,Dennis Barnfield,Regeneration and Planning,Equipment and Tools - General,04/12/2014,npc000468,42.53
Lancaster City Council,30UH,Dods Group PLC,Resources,Service Training Budget,04/11/2014,jpc000249,275.00
Lancaster City Council,30UH,Doglaw Ltd,Health & Housing,Equipment and Tools - General,31/10/2014,spc000590,39.99
Lancaster City Council,30UH,Dorrigo,Regeneration and Planning,Materials For Resale,05/11/2014,26198,18.74
Lancaster City Council,30UH,Drain Doctor,Environmental Services,Services - Waste Disposal,23/10/2014,25977,580.00
Lancaster City Council,30UH,Dulux Decor Centre,Regeneration and Planning,R & M - Buildings,03/10/2014,npc000373,727.78
Lancaster City Council,30UH,DUNELM,Environmental Services,Purchase Of Equipment,05/12/2014,26681,14.98
Lancaster City Council,30UH,Dvla,Environmental Services,Vehicle Licences,21/10/2014,25936,652.50
Lancaster City Council,30UH,Dvla,Environmental Services,Vehicle Licences,21/10/2014,25937,652.50
Lancaster City Council,30UH,Dvla,Environmental Services,Vehicle Licences,21/10/2014,25938,652.50
Lancaster City Council,30UH,Dvla,Environmental Services,Vehicle Licences,21/10/2014,25940,652.50
Lancaster City Council,30UH,Dvla,Environmental Services,Vehicle Licences,21/10/2014,25941,652.50
Lancaster City Council,30UH,Dvla,Environmental Services,Vehicle Licences,21/10/2014,25942,652.50
Lancaster City Council,30UH,Dvla,Environmental Services,Vehicle Licences,21/10/2014,25943,652.50
Lancaster City Council,30UH,Dvla,Environmental Services,Vehicle Licences,21/10/2014,25944,652.50
Lancaster City Council,30UH,Dvla,Environmental Services,Vehicle Licences,21/10/2014,25945,652.50
Lancaster City Council,30UH,Dvla,Environmental Services,Vehicle Licences,21/10/2014,25946,227.50
Lancaster City Council,30UH,Dvla,Environmental Services,Vehicle Licences,21/10/2014,25947,227.50
Lancaster City Council,30UH,Dvla,Environmental Services,Vehicle Licences,21/10/2014,25949,227.50
Lancaster City Council,30UH,Dvla,Environmental Services,Vehicle Licences,21/10/2014,25950,227.50
Lancaster City Council,30UH,Dvla,Environmental Services,Vehicle Licences,21/10/2014,25951,227.50
Lancaster City Council,30UH,Dvla,Environmental Services,Vehicle Licences,21/10/2014,25952,227.50
Lancaster City Council,30UH,Dvla,Environmental Services,Vehicle Licences,21/10/2014,25953,227.50
Lancaster City Council,30UH,Dvla,Environmental Services,Vehicle Licences,21/10/2014,25954,227.50
Lancaster City Council,30UH,Dvla,Environmental Services,Vehicle Licences,21/10/2014,25956,227.50
Lancaster City Council,30UH,Dvla,Environmental Services,Vehicle Licences,21/10/2014,25957,227.50
Lancaster City Council,30UH,Dvla,Environmental Services,Vehicle Licences,21/10/2014,25958,227.50
Lancaster City Council,30UH,Dvla,Environmental Services,Vehicle Licences,11/11/2014,26262,227.50
Lancaster City Council,30UH,Dvla,Environmental Services,Vehicle Licences,11/11/2014,26263,652.50
Lancaster City Council,30UH,Dvla,Environmental Services,Vehicle Licences,11/11/2014,26264,212.50
Lancaster City Council,30UH,Dvla,Environmental Services,Vehicle Licences,11/11/2014,26265,652.50
Lancaster City Council,30UH,Dvla,Environmental Services,Vehicle Licences,11/11/2014,26266,652.50
Lancaster City Council,30UH,Dvla,Environmental Services,Vehicle Licences,11/11/2014,26267,652.50
Lancaster City Council,30UH,Dvla,Environmental Services,Vehicle Licences,11/11/2014,26268,142.50
Lancaster City Council,30UH,Dvla,Environmental Services,Vehicle Licences,11/11/2014,26269,142.50
Lancaster City Council,30UH,Dvla,Environmental Services,Vehicle Licences,11/11/2014,26270,227.50
Lancaster City Council,30UH,Dvla,Environmental Services,Vehicle Licences,11/11/2014,26271,227.50
Lancaster City Council,30UH,Dvla,Environmental Services,Vehicle Licences,11/11/2014,26272,227.50
Lancaster City Council,30UH,Dvla,Environmental Services,Vehicle Licences,09/12/2014,26722,167.50
Lancaster City Council,30UH,Dvla,Environmental Services,Vehicle Licences,09/12/2014,26723,227.50
Lancaster City Council,30UH,Dvla,Environmental Services,Vehicle Licences,09/12/2014,26724,227.50
Lancaster City Council,30UH,Dvla,Environmental Services,Vehicle Licences,09/12/2014,26725,227.50
Lancaster City Council,30UH,Dvla,Environmental Services,Vehicle Licences,09/12/2014,26808,227.50
Lancaster City Council,30UH,DW Sports,Health & Housing,Clothing & Uniforms,20/11/2014,bpc001995,99.95
Lancaster City Council,30UH,DW Sports ,Health & Housing,Equipment and Tools - General,17/12/2014,bpc002166,34.20
Lancaster City Council,30UH,DW Sports ,Health & Housing,Equipment and Tools - General,10/12/2014,bpc002131,119.98
Lancaster City Council,30UH,Dyno Start Carnforth,Health & Housing,Services - General,26/11/2014,bpc002033,587.36
Lancaster City Council,30UH,Dyno Start Carnforth,Health & Housing,Equipment and Tools - General,26/11/2014,bpc002032,367.50
Lancaster City Council,30UH,e-2go.net,Health & Housing,Materials - General,13/10/2014,bpc001851,79.09
Lancaster City Council,30UH,Ebay,Health & Housing,Grants,01/10/2014,bpc001768,37.42
Lancaster City Council,30UH,Ebay,Regeneration and Planning,Office Equipment,07/11/2014,npc000434,74.16
Lancaster City Council,30UH,EBay - GSC Locksmiths,Health & Housing,Grants,04/11/2014,bpc001942,2.59
Lancaster City Council,30UH,Ebuyer.com,Resources,Purchase Of Equipment,29/10/2014,jpc000242,48.32
Lancaster City Council,30UH,Ebuyer.com,Health & Housing,IT Consumables,04/11/2014,spc000602,4.15
Lancaster City Council,30UH,Ebuyer (UK) Limited,Resources,Infrastructure - Update & Maintenance,06/10/2014,jpc000218,-1108.09
Lancaster City Council,30UH,ecotricity,Regeneration and Planning,Electricity,06/11/2014,npc000431,48.16
Lancaster City Council,30UH,ecotricity,Regeneration and Planning,Electricity,16/12/2014,npc000482,42.00
Lancaster City Council,30UH,ecotricity,Regeneration and Planning,Electricity,13/10/2014,npc000390,49.15
Lancaster City Council,30UH,Edge Cycleworks,Health & Housing,Equipment and Tools - General,04/11/2014,spc000600,416.67
Lancaster City Council,30UH,Edge Cycleworks,Health & Housing,Equipment and Tools - General,04/11/2014,spc000601,35.00
Lancaster City Council,30UH,Edmundson electricals,Health & Housing,Equipment and Tools - General,03/11/2014,bpc001937,67.24
Lancaster City Council,30UH,EKM Powershop,Regeneration and Planning,Software Purchase\Licences,02/10/2014,25681,35.98
Lancaster City Council,30UH,EKM Powershop,Regeneration and Planning,Software Purchase\Licences,05/12/2014,26682,29.98
Lancaster City Council,30UH,EKM Powershop,Regeneration and Planning,Software Purchase\Licences,05/12/2014,26684,29.98
Lancaster City Council,30UH,ELC,Health & Housing,Equipment and Tools - General,21/11/2014,bpc002025,14.96
Lancaster City Council,30UH,ELSON,Environmental Services,Materials - General,22/10/2014,25966,153.28
Lancaster City Council,30UH,Emap Limited,Office of the Chief Executive,Books & Periodicals,07/10/2014,mpc000020,161.10
Lancaster City Council,30UH,Environmental Media Group Ltd,Environmental Services,Service Training Budget,15/10/2014,25848,238.00
Lancaster City Council,30UH,Environmental Media Group Ltd,Environmental Services,Service Training Budget,15/10/2014,25849,7.14
Lancaster City Council,30UH,Estates Direct,Regeneration and Planning,Books & Periodicals,16/10/2014,npc000402,225.00
Lancaster City Council,30UH,EUREKA,Environmental Services,Materials - General,12/12/2014,26784,22.55
Lancaster City Council,30UH,eurooffice.co.uk,Health & Housing,Printing & Stationery,03/12/2014,bpc002093,138.99
Lancaster City Council,30UH,Event Brite,Regeneration and Planning,Service Training Budget,01/10/2014,npc000371,12.00
Lancaster City Council,30UH,Extreme Cool Limited,Health & Housing,Services - General,31/10/2014,bpc001900,416.67
Lancaster City Council,30UH,Facebook.com,Regeneration and Planning,Internet Provision,02/10/2014,25679,10.00
Lancaster City Council,30UH,Fancy That Morecambe,Health & Housing,Services - General,27/11/2014,bpc002069,20.00
Lancaster City Council,30UH,Farmfoods,Governance,Equipment and Tools - General,27/10/2014,dpc000208,13.18
Lancaster City Council,30UH,Farnell,Health & Housing,Equipment and Tools - General,05/12/2014,bpc002114,30.50
Lancaster City Council,30UH,Farrell Heyworth,Health & Housing,Homelessness Priority Need Order,18/12/2014,spc000699,307.50
Lancaster City Council,30UH,Farrell Heyworth,Health & Housing,Homelessness Priority Need Order,18/12/2014,spc000700,307.50
Lancaster City Council,30UH,Fast Key Services Ltd,Resources,Equipment and Tools - General,31/10/2014,ppc000180,7.20
Lancaster City Council,30UH,Fast Key Services Ltd,Resources,Office Equipment,26/11/2014,ppc000202,46.20
Lancaster City Council,30UH,Fayre and Square,Regeneration and Planning,Catering Provisions,29/11/2014,npc000461,46.22
Lancaster City Council,30UH,FIBERWEB BODDINGTONS,Environmental Services,Materials - General,22/10/2014,25964,1118.25
Lancaster City Council,30UH,FIBERWEB PINS,Environmental Services,Materials - General,30/10/2014,26054,183.75
Lancaster City Council,30UH,Fiddlers Lancashire Crisps,Environmental Services,Materials For Resale,20/10/2014,25899,86.85
Lancaster City Council,30UH,Fiddlers Lancashire Crisps,Environmental Services,Materials For Resale,22/12/2014,26887,57.90
Lancaster City Council,30UH,FILMBANK.CO.UK,Health & Housing,Miscellaneous Licences,03/12/2014,hpc000162,466.67
Lancaster City Council,30UH,FireQuest UK Ltd,Environmental Services,Other Construction Costs,15/10/2014,25845,2000.00
Lancaster City Council,30UH,First Aid 4 less,Health & Housing,Equipment and Tools - General,07/12/2014,bpc002117,66.65
Lancaster City Council,30UH,F L Memo,Health & Housing,Corporate Safety,03/10/2014,spc000548,53.00
Lancaster City Council,30UH,Focus Training,Health & Housing,Service Training Budget,30/10/2014,bpc001892,208.33
Lancaster City Council,30UH,FR Jones and Son,Environmental Services,Equipment and Tools - General,14/10/2014,25839,967.66
Lancaster City Council,30UH,FR Jones and Son,Environmental Services,Equipment and Tools - General,27/10/2014,26001,125.26
Lancaster City Council,30UH,Frosts,Health & Housing,Printing & Stationery,13/10/2014,bpc001845,54.45
Lancaster City Council,30UH,FT.com,Resources,Subscriptions,08/12/2014,fpc000077,225.00
Lancaster City Council,30UH,Furness College,Regeneration and Planning,Marketing,20/10/2014,npc000405,60.00
Lancaster City Council,30UH,Furniture@Work Ltd,Health & Housing,Printing & Stationery,12/12/2014,bpc002148,-127.00
Lancaster City Council,30UH,Furniture@Work Ltd,Health & Housing,Printing & Stationery,21/11/2014,bpc002015,127.00
Lancaster City Council,30UH,Fylde Telecom Ltd,Health & Housing,IT Consumables,09/12/2014,spc000683,15.00
Lancaster City Council,30UH,Galaxy Stores,Health & Housing,Materials - General,12/11/2014,bpc001986,78.33
Lancaster City Council,30UH,Gateley,Governance,Services - Consultants,20/11/2014,lpc000181,2495.00
Lancaster City Council,30UH,GB ON LINE SALES,Health & Housing,Office Equipment,03/11/2014,hpc000143,3.99
Lancaster City Council,30UH,Gemini Data Loggers,Health & Housing,Equipment and Tools - General,29/10/2014,bpc001887,20.00
Lancaster City Council,30UH,Gemini Data Loggers,Health & Housing,Equipment and Tools - General,07/11/2014,bpc001963,25.00
Lancaster City Council,30UH,George Roberts,Regeneration and Planning,R & M - Sea & River / Promenade,16/12/2014,npc000491,110.21
Lancaster City Council,30UH,George Speight and Sons Ltd,Environmental Services,Materials For Resale,24/11/2014,26459,614.33
Lancaster City Council,30UH,George Speight and Sons Ltd,Environmental Services,Materials For Resale,22/12/2014,26888,628.46
Lancaster City Council,30UH,George Speight and Sons Ltd,Environmental Services,Materials - General,24/11/2014,26459,76.14
Lancaster City Council,30UH,George Speight and Sons Ltd,Environmental Services,Materials - General,22/12/2014,26888,74.20
Lancaster City Council,30UH,George Speight and Sons Ltd,Environmental Services,Materials For Resale,20/10/2014,25898,790.81
Lancaster City Council,30UH,George Speight and Sons Ltd,Environmental Services,Materials - General,20/10/2014,25898,76.53
Lancaster City Council,30UH,Gerrys of Morecambe,Regeneration and Planning,Equipment and Tools - General,04/11/2014,npc000428,4.99
Lancaster City Council,30UH,Gladstone Boots Limited,Environmental Services,Protective Clothing,01/12/2014,26560,65.81
Lancaster City Council,30UH,Glen Dimplex Home Appliances,Environmental Services,Equipment and Tools - General,02/10/2014,25675,115.83
Lancaster City Council,30UH,Gopak,Health & Housing,Materials - General,11/11/2014,spc000615,69.67
Lancaster City Council,30UH,Greenlands Farm Village,Regeneration and Planning,AONB Executive Support,13/11/2014,npc000438,70.00
Lancaster City Council,30UH,Green Magic,Health & Housing,R & M - Buildings,13/11/2014,bpc001989,26.00
Lancaster City Council,30UH,GUNNEBO,Regeneration and Planning,Services - General,02/12/2014,npc000462,236.75
Lancaster City Council,30UH,Hala Pet Stores,Environmental Services,Materials - General,17/11/2014,26344,173.29
Lancaster City Council,30UH,Hala Pet Stores,Environmental Services,Materials - General,22/12/2014,26895,128.96
Lancaster City Council,30UH,Halfords,Regeneration and Planning,R & M - General,06/10/2014,npc000386,33.32
Lancaster City Council,30UH,Hanging Basket,Health & Housing,Hospitality,12/12/2014,bpc002149,26.66
Lancaster City Council,30UH,Harrisons Packaging Ltd,Environmental Services,Grounds Maintenance - Other,24/11/2014,26465,155.69
Lancaster City Council,30UH,Hartley Hire,Environmental Services,Equipment and Tools - General,23/10/2014,25979,177.95
Lancaster City Council,30UH,HCS,Health & Housing,Cleansing Equipment,09/10/2014,bpc001818,42.99
Lancaster City Council,30UH,HCS,Health & Housing,Cleansing Equipment,10/10/2014,bpc001833,147.86
Lancaster City Council,30UH,HCS,Health & Housing,Cleansing Equipment,12/11/2014,bpc001982,26.24
Lancaster City Council,30UH,HCS,Health & Housing,Cleansing Equipment,12/11/2014,bpc001983,89.43
Lancaster City Council,30UH,HCS,Health & Housing,Cleansing Equipment,17/12/2014,bpc002168,59.94
Lancaster City Council,30UH,HCS,Regeneration and Planning,Cleaning Materials,11/11/2014,npc000435,169.04
Lancaster City Council,30UH,healthandcare.co.uk,Health & Housing,Equipment and Tools - General,09/10/2014,bpc001822,59.97
Lancaster City Council,30UH,Henry Alty Ltd,Environmental Services,Grounds Maintenance - Other,24/11/2014,26456,92.50
Lancaster City Council,30UH,High Street Vouchers,Regeneration and Planning,Marketing,05/12/2014,26683,100.00
Lancaster City Council,30UH,H M Courts Service,Resources,Legal & Court Costs,05/11/2014,rpc000041,117.00
Lancaster City Council,30UH,H M Courts Service,Resources,Legal & Court Costs,14/11/2014,rpc000044,1443.00
Lancaster City Council,30UH,HM Courts Service,Resources,Legal & Court Costs,24/11/2014,rpc000045,39.00
Lancaster City Council,30UH,HMCS,Resources,Legal & Court Costs,12/11/2014,rpc000043,747.00
Lancaster City Council,30UH,HMCS,Resources,Services - Legal Costs,01/10/2014,rpc000035,111.00
Lancaster City Council,30UH,HMCTS,Governance,Legal & Court Costs,13/11/2014,lpc000179,110.00
Lancaster City Council,30UH,HMCTS,Governance,Legal & Court Costs,17/11/2014,lpc000180,180.00
Lancaster City Council,30UH,HOBBYCRAFT,Environmental Services,Materials - General,24/10/2014,25980,30.00
Lancaster City Council,30UH,Holiday Inn,Health & Housing,Service Training Budget,03/12/2014,spc000669,106.67
Lancaster City Council,30UH,Home Bargains,Health & Housing,Equipment and Tools - General,08/10/2014,bpc001810,16.72
Lancaster City Council,30UH,Home Bargains,Health & Housing,Services - General,12/11/2014,bpc001985,75.00
Lancaster City Council,30UH,Homebase,Health & Housing,Equipment and Tools - General,24/11/2014,bpc002027,253.26
Lancaster City Council,30UH,Homebase,Environmental Services,Equipment and Tools - General,06/11/2014,26218,37.15
Lancaster City Council,30UH,Homebase,Environmental Services,Equipment and Tools - General,09/12/2014,26733,9.47
Lancaster City Council,30UH,Homebase,Regeneration and Planning,Equipment and Tools - General,06/10/2014,npc000375,21.56
Lancaster City Council,30UH,Homebase,Regeneration and Planning,Equipment and Tools - General,20/10/2014,npc000407,3.63
Lancaster City Council,30UH,Homebase,Regeneration and Planning,Equipment and Tools - General,03/11/2014,npc000426,15.42
Lancaster City Council,30UH,Homebase,Regeneration and Planning,Equipment and Tools - General,08/12/2014,npc000476,15.82
Lancaster City Council,30UH,Homebase,Environmental Services,Capital Payments To Contractors,16/10/2014,25859,18.99
Lancaster City Council,30UH,Homebase,Health & Housing,Equipment and Tools - General,21/11/2014,bpc002026,3.16
Lancaster City Council,30UH,Honeycomb,Regeneration and Planning,Materials For Resale,05/11/2014,26578,69.37
Lancaster City Council,30UH,Houghtons Home Improvement,Regeneration and Planning,Management Plan Projects,16/12/2014,npc000484,26.92
Lancaster City Council,30UH,HSD on line,Health & Housing,Equipment and Tools - General,06/10/2014,bpc001798,47.09
Lancaster City Council,30UH,Hunt Spar,Health & Housing,Materials For Resale,14/12/2014,bpc002156,3.33
Lancaster City Council,30UH,HYDRO-ACTIF.COM,Health & Housing,Service Training Budget,09/10/2014,bpc001824,100.17
Lancaster City Council,30UH,Hygiene cleaning  supplies Ltd,Resources,Cleaning Materials,14/10/2014,ppc000177,267.48
Lancaster City Council,30UH,Hygiene Cleaning Supplies Ltd,Environmental Services,Other Cleaning,28/10/2014,26027,64.39
Lancaster City Council,30UH,Hygiene Cleaning Supplies Ltd,Environmental Services,Services - Trade Refuse,28/10/2014,26026,327.72
Lancaster City Council,30UH,Hygiene Cleaning Supplies Ltd,Resources,Cleaning Materials,31/10/2014,ppc000183,75.90
Lancaster City Council,30UH,Hygiene Cleaning Supplies Ltd,Resources,Cleaning Materials,21/11/2014,ppc000196,75.90
Lancaster City Council,30UH,Hygiene Cleaning Supplies Ltd,Resources,Cleaning Materials,02/12/2014,ppc000209,124.12
Lancaster City Council,30UH,Hygiene Cleaning Supplies Ltd,Resources,Cleaning Materials,09/12/2014,ppc000212,461.45
Lancaster City Council,30UH,Hygiene Cleaning Supplies Ltd,Health & Housing,Contracted Services,09/12/2014,spc000680,303.94
Lancaster City Council,30UH,iCell Media,Environmental Services,Printing & Stationery,09/12/2014,26721,6.88
Lancaster City Council,30UH,ICO,Governance,Information Management,04/11/2014,dpc000211,35.00
Lancaster City Council,30UH,ico.org.uk,Governance,Information Management,03/12/2014,lpc000183,500.00
Lancaster City Council,30UH,Identivue,Resources,Office Equipment,03/10/2014,rpc000038,69.75
Lancaster City Council,30UH,Imperial London Hotels,Governance,Professional Fees Etc,07/11/2014,lpc000177,79.17
Lancaster City Council,30UH,Indicator-FL Memo Ltd,Health & Housing,Corporate Safety,04/11/2014,spc000604,150.00
Lancaster City Council,30UH,Information Commissioners Offi,Governance,Information Management,28/11/2014,dpc000220,35.00
Lancaster City Council,30UH,Information Commissioners Offi,Governance,Information Management,01/12/2014,dpc000221,35.00
Lancaster City Council,30UH,Instantprint,Regeneration and Planning,Printing & Stationery,02/10/2014,25683,39.99
Lancaster City Council,30UH,Instantprint,Regeneration and Planning,Printing & Stationery,04/11/2014,26169,33.32
Lancaster City Council,30UH,ios,Health & Housing,Service Training Budget,01/10/2014,bpc001766,680.00
Lancaster City Council,30UH,IOSH,Governance,Corporate Training Budget,04/11/2014,lpc000172,108.00
Lancaster City Council,30UH,IOSH,Governance,Corporate Training Budget,23/12/2014,lpc000193,130.00
Lancaster City Council,30UH,IOSH,Health & Housing,Corporate Safety,14/11/2014,spc000624,49.00
Lancaster City Council,30UH,IQL UK,Health & Housing,Service Training Budget,25/10/2014,bpc001876,450.00
Lancaster City Council,30UH,Isle of Man Steampacker Compan,Regeneration and Planning,Sea-Cat Sales,08/12/2014,26717,123.42
Lancaster City Council,30UH,J A K Water systems Ltd,Health & Housing,Services - General,16/10/2014,bpc001860,317.50
Lancaster City Council,30UH,J.A.K. Water Systems Ltd,Health & Housing,Equipment and Tools - General,12/12/2014,bpc002140,254.82
Lancaster City Council,30UH,J Atkinson &amp; Co,Health & Housing,Materials For Resale,20/11/2014,bpc002004,187.30
Lancaster City Council,30UH,J Atkinson &amp; Co,Health & Housing,Equipment and Tools - General,20/11/2014,bpc002005,352.00
Lancaster City Council,30UH,J Atkinson &amp; Co,Health & Housing,Materials For Resale,01/10/2014,bpc001780,31.50
Lancaster City Council,30UH,J Atkinson &amp; Co,Health & Housing,Materials For Resale,01/10/2014,bpc001783,82.40
Lancaster City Council,30UH,J Atkinson &amp; Co,Health & Housing,Materials For Resale,01/10/2014,bpc001785,74.40
Lancaster City Council,30UH,J Atkinson &amp; Co,Health & Housing,Materials For Resale,13/10/2014,bpc001842,49.60
Lancaster City Council,30UH,J Atkinson &amp; Co,Health & Housing,Materials For Resale,16/10/2014,bpc001853,301.80
Lancaster City Council,30UH,J Atkinson &amp; Co,Health & Housing,Materials For Resale,30/10/2014,bpc001891,95.40
Lancaster City Council,30UH,J Atkinson &amp; Co,Health & Housing,Materials For Resale,31/10/2014,bpc001898,150.80
Lancaster City Council,30UH,J Atkinson &amp; Co,Health & Housing,Materials For Resale,03/12/2014,bpc002094,60.10
Lancaster City Council,30UH,J. Atkinson and Co Ltd,Environmental Services,Materials For Resale,20/10/2014,25902,337.34
Lancaster City Council,30UH,J. Atkinson and Co Ltd,Environmental Services,Materials For Resale,24/10/2014,25982,273.40
Lancaster City Council,30UH,J. Atkinson and Co Ltd,Environmental Services,Materials For Resale,18/11/2014,26367,879.42
Lancaster City Council,30UH,J. Atkinson and Co Ltd,Environmental Services,Materials For Resale,22/12/2014,26894,184.54
Lancaster City Council,30UH,J. Atkinson and Co Ltd,Health & Housing,Equipment and Tools - General,17/12/2014,bpc002176,7.78
Lancaster City Council,30UH,J. Atkinson and Co Ltd,Health & Housing,Materials For Resale,17/12/2014,bpc002176,270.52
Lancaster City Council,30UH,J C Peacock &amp; Co Ltd,Health & Housing,Contracted Services,17/12/2014,spc000696,541.20
Lancaster City Council,30UH,Jewitts Pet Feeds,Health & Housing,Equipment and Tools - General,18/12/2014,spc000702,7.35
Lancaster City Council,30UH,J M Pratt Ltd,Environmental Services,Materials For Resale,18/11/2014,26364,721.14
Lancaster City Council,30UH,J M Pratt Ltd,Environmental Services,Materials For Resale,22/12/2014,26889,518.35
Lancaster City Council,30UH,J.M Pratt Ltd,Environmental Services,Exhibitions & Events,20/10/2014,25903,344.40
Lancaster City Council,30UH,J.M Pratt Ltd,Environmental Services,Materials For Resale,20/10/2014,25903,596.54
Lancaster City Council,30UH,JNDee Limited,Environmental Services,Equipment and Tools - General,18/11/2014,26356,64.95
Lancaster City Council,30UH,John Cornthwaite Ltd,Environmental Services,Equipment and Tools - General,22/12/2014,26896,44.40
Lancaster City Council,30UH,Johnston Press,Resources,Miscellaneous Advertising,04/12/2014,fpc000068,240.95
Lancaster City Council,30UH,JPL,Health & Housing,Equipment and Tools - General,04/11/2014,bpc001943,271.28
Lancaster City Council,30UH,Juno Records,Resources,Long Service Awards,22/10/2014,jpc000237,144.14
Lancaster City Council,30UH,Just Projector Lamps .com,Health & Housing,Equipment and Tools - General,07/11/2014,bpc001961,167.64
Lancaster City Council,30UH,Kays Cards Ltd,Environmental Services,Equipment and Tools - General,09/12/2014,26734,83.63
Lancaster City Council,30UH,KC Inks,Governance,IT Consumables,06/10/2014,dpc000199,39.50
Lancaster City Council,30UH,Kentdale Landrover,Regeneration and Planning,Repair & Mtce Of Vehicles,23/10/2014,npc000413,436.37
Lancaster City Council,30UH,Kentdale Landrover,Regeneration and Planning,Repair & Mtce Of Vehicles,23/10/2014,npc000412,54.85
Lancaster City Council,30UH,Keycraft Ltd,Environmental Services,Materials For Resale,17/11/2014,26342,393.74
Lancaster City Council,30UH,Keysoft,Regeneration and Planning,Software Purchase\Licences,21/10/2014,npc000409,289.00
Lancaster City Council,30UH,Killgerm Chemicals Ltd,Health & Housing,Equipment and Tools - General,04/11/2014,spc000603,601.72
Lancaster City Council,30UH,Killgerm Chemicals Ltd,Health & Housing,Equipment and Tools - General,10/12/2014,spc000684,548.10
Lancaster City Council,30UH,Killgerm Chemicals Ltd,Health & Housing,Equipment and Tools - General,12/12/2014,spc000686,240.12
Lancaster City Council,30UH,Killgerm Chemicals Ltd,Health & Housing,Materials - General,01/10/2014,spc000543,0.01
Lancaster City Council,30UH,Killgerm Chemicals Ltd,Health & Housing,Materials - General,03/10/2014,spc000545,266.30
Lancaster City Council,30UH,Killgerm Chemicals Ltd,Health & Housing,Materials - General,03/10/2014,spc000546,556.20
Lancaster City Council,30UH,Kirkby Lonsdale Coach Hire Ltd,Regeneration and Planning,Services - General,15/10/2014,npc000401,250.00
Lancaster City Council,30UH,Knowsley Safari Park,Health & Housing,Services - General,31/10/2014,bpc001901,91.86
Lancaster City Council,30UH,KPCM,Health & Housing,Equipment and Tools - General,14/11/2014,spc000622,15.12
Lancaster City Council,30UH,LABC,Regeneration and Planning,Service Training Budget,20/10/2014,npc000403,150.00
Lancaster City Council,30UH,LABC,Regeneration and Planning,Service Training Budget,16/12/2014,npc000485,300.00
Lancaster City Council,30UH,LADDERSTORE,Environmental Services,Equipment and Tools - General,26/11/2014,26484,39.99
Lancaster City Council,30UH,Lakeland,Regeneration and Planning,Printing & Stationery,01/12/2014,26579,22.48
Lancaster City Council,30UH,Lancashire Football Associatio,Health & Housing,Service Training Budget,03/12/2014,bpc002092,135.00
Lancaster City Council,30UH,Lancaster County Court,Governance,Legal & Court Costs,27/10/2014,lpc000167,100.00
Lancaster City Council,30UH,Lancaster County Court,Governance,Legal & Court Costs,05/11/2014,lpc000174,110.00
Lancaster City Council,30UH,Lancaster County Court,Governance,Legal & Court Costs,10/11/2014,lpc000178,220.00
Lancaster City Council,30UH,Lancaster The Brewery,Environmental Services,Materials For Resale,20/10/2014,25901,250.00
Lancaster City Council,30UH,Landoor Links - TransportXtra,Environmental Services,Subscriptions,03/10/2014,25692,84.00
Lancaster City Council,30UH,Land Quality Management Ltd,Health & Housing,Equipment and Tools - General,09/10/2014,spc000557,6.50
Lancaster City Council,30UH,Lathams,Environmental Services,Materials For Resale,20/10/2014,25904,1355.11
Lancaster City Council,30UH,Lathams,Environmental Services,Materials For Resale,17/11/2014,26336,1030.01
Lancaster City Council,30UH,Lathams,Environmental Services,Materials For Resale,22/12/2014,26891,878.90
Lancaster City Council,30UH,Law Soceity ,Governance,Professional Fees Etc,14/10/2014,lpc000159,1408.00
Lancaster City Council,30UH,LBS,Environmental Services,Materials - General,23/10/2014,25969,27.95
Lancaster City Council,30UH,LCR Sysytems,Environmental Services,Printing & Stationery,24/10/2014,25987,140.00
Lancaster City Council,30UH,Ledhut,Health & Housing,Contracted Services,17/12/2014,spc000693,3000.00
Lancaster City Council,30UH,Ledhut,Health & Housing,Contracted Services,17/12/2014,spc000694,892.82
Lancaster City Council,30UH,Ledhut,Health & Housing,Contracted Services,01/12/2014,spc000658,1208.99
Lancaster City Council,30UH,Ledhut,Health & Housing,Contracted Services,02/12/2014,spc000666,725.90
Lancaster City Council,30UH,Lees Games,Health & Housing,Services - General,28/10/2014,bpc001880,300.00
Lancaster City Council,30UH,Lile Tool Shop,Environmental Services,Equipment and Tools - General,28/11/2014,26553,139.84
Lancaster City Council,30UH,LIMPET LABELS,Environmental Services,Printing & Stationery,14/11/2014,26329,150.00
Lancaster City Council,30UH,Lloyd Worrall,Resources,Fixtures & Fittings - General,09/10/2014,ppc000174,12.60
Lancaster City Council,30UH,Local Government Association,Resources,Conferences & Seminars,27/10/2014,fpc000060,199.00
Lancaster City Council,30UH,Locks Express,Regeneration and Planning,Grounds Maintenance - Other,11/12/2014,npc000479,94.60
Lancaster City Council,30UH,Locks Express,Regeneration and Planning,Management Plan Projects,11/12/2014,npc000479,189.20
Lancaster City Council,30UH,Londis,Health & Housing,Contracted Services,09/12/2014,spc000682,100.50
Lancaster City Council,30UH,London Pupae Supplies,Environmental Services,Materials - General,24/10/2014,25984,517.95
Lancaster City Council,30UH,London Pupae Supplies Ltd,Environmental Services,Materials - General,01/12/2014,26566,517.95
Lancaster City Council,30UH,London Transport,Regeneration and Planning,Use Of Public Tpt - Officers,04/11/2014,26168,26.70
Lancaster City Council,30UH,London Underground,Health & Housing,Use Of Public Tpt - Officers,01/10/2014,spc000544,4.70
Lancaster City Council,30UH,Lothersdale hotel,Regeneration and Planning,Exhibitions & Events - Expenses,06/10/2014,npc000378,58.33
Lancaster City Council,30UH,Lothersdale hotel,Regeneration and Planning,Exhibitions & Events - Expenses,06/10/2014,npc000379,145.83
Lancaster City Council,30UH,Lothersdale hotel,Regeneration and Planning,Exhibitions & Events - Expenses,22/10/2014,npc000411,58.33
Lancaster City Council,30UH,Lothersdale hotel,Regeneration and Planning,Exhibitions & Events - Expenses,28/10/2014,npc000417,233.33
Lancaster City Council,30UH,Lothersdale Hotel,Regeneration and Planning,Exhibitions & Events - Expenses,03/12/2014,npc000467,295.83
Lancaster City Council,30UH,LQM,Health & Housing,Equipment and Tools - General,09/10/2014,spc000556,160.00
Lancaster City Council,30UH,Lyreco UK Limited,Environmental Services,Printing & Stationery,18/11/2014,26370,38.42
Lancaster City Council,30UH,Lyreco UK Limited,Resources,Printing & Stationery,27/10/2014,fpc000061,20.45
Lancaster City Council,30UH,Lyreco UK Limited,Resources,Printing & Stationery,27/10/2014,fpc000063,71.65
Lancaster City Council,30UH,Lyreco UK Limited,Resources,Printing & Stationery,04/12/2014,fpc000069,18.71
Lancaster City Council,30UH,Lyreco UK Limited,Health & Housing,Equipment and Tools - General,06/10/2014,bpc001796,74.06
Lancaster City Council,30UH,Lyreco UK Limited,Health & Housing,Printing & Stationery,01/10/2014,bpc001778,-27.80
Lancaster City Council,30UH,Lyreco UK Limited,Health & Housing,Printing & Stationery,01/10/2014,bpc001781,7.10
Lancaster City Council,30UH,Lyreco UK Limited,Health & Housing,Printing & Stationery,30/10/2014,bpc001888,305.35
Lancaster City Council,30UH,Lyreco UK Limited,Health & Housing,Printing & Stationery,05/11/2014,bpc001959,79.35
Lancaster City Council,30UH,Lyreco UK Limited,Health & Housing,Printing & Stationery,12/12/2014,bpc002154,26.39
Lancaster City Council,30UH,Lyreco UK Limited,Governance,IT Consumables,16/10/2014,dpc000205,45.12
Lancaster City Council,30UH,Lyreco UK Limited,Governance,Printing & Stationery,03/11/2014,dpc000210,6.52
Lancaster City Council,30UH,Lyreco UK Limited,Governance,Printing & Stationery,12/12/2014,dpc000228,2.63
Lancaster City Council,30UH,Lyreco UK Limited,Environmental Services,Printing & Stationery,20/10/2014,25894,75.83
Lancaster City Council,30UH,Lyreco UK Limited,Environmental Services,Printing & Stationery,02/12/2014,26592,63.82
Lancaster City Council,30UH,Lyreco UK Limited,Governance,Printing & Stationery,09/12/2014,lpc000187,54.39
Lancaster City Council,30UH,Lyreco UK Limited,Resources,Printing & Stationery,29/10/2014,jpc000243,63.54
Lancaster City Council,30UH,Lyreco UK Limited,Resources,Printing & Stationery,08/12/2014,jpc000280,20.51
Lancaster City Council,30UH,Lyreco UK Limited,Office of the Chief Executive,Printing & Stationery,10/10/2014,mpc000022,19.78
Lancaster City Council,30UH,Lyreco UK Limited,Resources,Printing & Stationery,11/11/2014,ppc000187,54.70
Lancaster City Council,30UH,Lyreco UK Limited,Resources,Printing & Stationery,18/11/2014,ppc000193,36.06
Lancaster City Council,30UH,Lyreco UK Limited,Health & Housing,Printing & Stationery,21/11/2014,bpc002023,12.88
Lancaster City Council,30UH,Lyreco UK Limited,Governance,Printing & Stationery,13/10/2014,dpc000204,70.96
Lancaster City Council,30UH,Lyreco UK Limited,Environmental Services,Office Equipment,28/10/2014,26028,73.25
Lancaster City Council,30UH,Lyreco UK Limited,Environmental Services,Office Equipment,06/11/2014,26219,62.85
Lancaster City Council,30UH,Lyreco UK Limited,Governance,Printing & Stationery,20/10/2014,lpc000166,27.77
Lancaster City Council,30UH,Lyreco UK Limited,Regeneration and Planning,Printing & Stationery,04/12/2014,npc000471,16.69
Lancaster City Council,30UH,Marketing Lancashire,Regeneration and Planning,Conferences & Seminars,05/11/2014,26577,110.00
Lancaster City Council,30UH,Marketing Lancashire,Regeneration and Planning,Exhibitions,05/11/2014,26577,55.00
Lancaster City Council,30UH,Marks and Spencer,Resources,Subsistence,27/10/2014,fpc000062,80.40
Lancaster City Council,30UH,Marks and Spencer,Governance,Civic Receptions & Mayoral Functions,11/12/2014,dpc000227,149.00
Lancaster City Council,30UH,Masterpart,Health & Housing,Equipment and Tools - General,03/11/2014,spc000594,10.00
Lancaster City Council,30UH,Matalan,Health & Housing,Equipment and Tools - General,18/12/2014,spc000701,16.67
Lancaster City Council,30UH,Matalan,Health & Housing,Equipment and Tools - General,24/12/2014,spc000708,-8.34
Lancaster City Council,30UH,MBL Seminars,Governance,Service Training Budget,17/10/2014,lpc000165,480.00
Lancaster City Council,30UH,MBL Seminars,Governance,Service Training Budget,22/12/2014,lpc000192,99.00
Lancaster City Council,30UH,McDonalds,Health & Housing,Tenants Participation,19/11/2014,hpc000144,35.56
Lancaster City Council,30UH,MCPS-PRS Alliance Limited,Regeneration and Planning,Services - General,30/10/2014,26046,171.18
Lancaster City Council,30UH,MD Hanafin,Regeneration and Planning,Management Plan Projects,05/11/2014,npc000429,68.74
Lancaster City Council,30UH,MechLite,Environmental Services,Equipment and Tools - General,27/11/2014,26529,310.20
Lancaster City Council,30UH,merlin archery limited,Health & Housing,Equipment and Tools - General,28/11/2014,bpc002079,98.60
Lancaster City Council,30UH,Microsoft,Resources,Purchase Of Equipment,29/10/2014,jpc000239,1123.14
Lancaster City Council,30UH,Microsoft,Resources,Purchase Of Equipment,29/10/2014,jpc000240,1123.14
Lancaster City Council,30UH,Microsoft,Resources,Purchase Of Equipment,29/10/2014,jpc000241,137.49
Lancaster City Council,30UH,Microsoft Store,Resources,Infrastructure - Update & Maintenance,22/12/2014,jpc000283,58.32
Lancaster City Council,30UH,Midllesex University,Regeneration and Planning,Books & Periodicals,21/11/2014,npc000450,25.00
Lancaster City Council,30UH,millet sports,Health & Housing,Equipment and Tools - General,03/11/2014,bpc001913,53.46
Lancaster City Council,30UH,Mistore Ltd,Environmental Services,Printing & Stationery,02/10/2014,25676,206.68
Lancaster City Council,30UH,monitors and arms,Resources,Office Equipment,04/12/2014,fpc000071,107.50
Lancaster City Council,30UH,Moo.Com,Health & Housing,Printing & Stationery,01/12/2014,bpc002082,74.23
Lancaster City Council,30UH,Moo.Com,Health & Housing,Printing & Stationery,13/10/2014,bpc001844,45.49
Lancaster City Council,30UH,Moorgate News,Resources,Remembrance Day,26/11/2014,ppc000201,5.00
Lancaster City Council,30UH,Morecambe Bay Guest House,Health & Housing,Services - Bed and Breakfast,21/10/2014,spc000577,25.00
Lancaster City Council,30UH,Morecambe Bay Property Ltd,Health & Housing,Homelessness Priority Need Order,02/12/2014,spc000667,130.00
Lancaster City Council,30UH,Morecambe TIC,Health & Housing,Services - General,03/10/2014,bpc001790,2.50
Lancaster City Council,30UH,Morrell Wood Finishes Ltd,Resources,Equipment and Tools - General,31/10/2014,ppc000182,137.00
Lancaster City Council,30UH,Morrisons,Health & Housing,Tenants Participation,08/10/2014,hpc000138,46.85
Lancaster City Council,30UH,Morrisons,Regeneration and Planning,Printing & Stationery,05/11/2014,26490,2.00
Lancaster City Council,30UH,Morrisons,Regeneration and Planning,Services - General,30/10/2014,npc000421,2.04
Lancaster City Council,30UH,Morrisons,Health & Housing,Services - General,03/10/2014,bpc001794,3.77
Lancaster City Council,30UH,Morrisons,Health & Housing,Tenants Participation,08/10/2014,hpc000137,55.91
Lancaster City Council,30UH,Morrisons,Environmental Services,Entertainment Fees,14/12/2014,26802,4.10
Lancaster City Council,30UH,Morrisons,Environmental Services,Equipment and Tools - General,06/11/2014,26216,6.25
Lancaster City Council,30UH,Morrisons,Environmental Services,Equipment and Tools - General,07/12/2014,26699,6.67
Lancaster City Council,30UH,Morrisons,Environmental Services,Hospitality,19/11/2014,26385,11.93
Lancaster City Council,30UH,Morrisons,Environmental Services,Hospitality,19/11/2014,26386,0.83
Lancaster City Council,30UH,Morrisons,Environmental Services,Hospitality,14/12/2014,26796,4.64
Lancaster City Council,30UH,Morrisons,Environmental Services,Hospitality,14/12/2014,26797,11.05
Lancaster City Council,30UH,Morrisons,Regeneration and Planning,Catering Provisions,27/11/2014,npc000458,24.15
Lancaster City Council,30UH,Morrisons,Regeneration and Planning,Catering Provisions,27/11/2014,npc000459,8.02
Lancaster City Council,30UH,Morrisons,Regeneration and Planning,Catering Provisions,04/12/2014,npc000472,10.83
Lancaster City Council,30UH,Morrisons,Regeneration and Planning,Catering Provisions,04/12/2014,npc000473,4.49
Lancaster City Council,30UH,Morrisons,Regeneration and Planning,Catering Provisions,04/12/2014,npc000474,19.20
Lancaster City Council,30UH,Morrisons,Regeneration and Planning,Equipment and Tools - General,22/11/2014,npc000454,8.86
Lancaster City Council,30UH,Morrisons,Regeneration and Planning,Exhibitions & Events - Expenses,06/10/2014,npc000380,4.94
Lancaster City Council,30UH,Morrisons,Regeneration and Planning,Exhibitions & Events - Expenses,20/10/2014,npc000406,16.32
Lancaster City Council,30UH,Morrisons,Regeneration and Planning,Exhibitions & Events - Expenses,27/10/2014,npc000415,60.69
Lancaster City Council,30UH,Morrisons,Regeneration and Planning,Exhibitions & Events - Expenses,20/11/2014,npc000449,10.00
Lancaster City Council,30UH,Morrisons,Regeneration and Planning,Exhibitions & Events - Expenses,21/11/2014,npc000452,9.67
Lancaster City Council,30UH,Morrisons,Regeneration and Planning,Exhibitions & Events - Expenses,02/12/2014,npc000463,10.00
Lancaster City Council,30UH,Morrisons,Regeneration and Planning,Office Equipment,03/11/2014,npc000423,4.50
Lancaster City Council,30UH,Mountain Warehouse,Health & Housing,Clothing & Uniforms,03/11/2014,spc000596,199.97
Lancaster City Council,30UH,mr top seller,Health & Housing,Equipment and Tools - General,03/11/2014,bpc001923,8.95
Lancaster City Council,30UH,My Protein,Health & Housing,Materials For Resale,21/10/2014,bpc001872,42.28
Lancaster City Council,30UH,NATIONAL HOUSING FEDERATION,Health & Housing,Service Training Budget,03/11/2014,hpc000140,58.95
Lancaster City Council,30UH,national rail ,Regeneration and Planning,Use Of Public Tpt - Officers,25/11/2014,npc000457,88.40
Lancaster City Council,30UH,Neo Direct Ltd PAYPAL,Health & Housing,Equipment and Tools - General,12/12/2014,bpc002153,80.97
Lancaster City Council,30UH,NHBS Ltd,Environmental Services,Equipment and Tools - General,19/12/2014,26877,195.00
Lancaster City Council,30UH,NICE Bar and Restaurant,Regeneration and Planning,Exhibitions,28/11/2014,26551,320.83
Lancaster City Council,30UH,NICE Enterprises Ltd,Resources,Catering Provisions,26/11/2014,ppc000199,42.05
Lancaster City Council,30UH,Nichol Industries Ltd,Environmental Services,Equipment and Tools - General,06/11/2014,26210,625.00
Lancaster City Council,30UH,Nicky Grist Motorsports Limite,Health & Housing,Printing & Stationery,20/11/2014,bpc001998,45.25
Lancaster City Council,30UH,Nightsearcher ltd,Regeneration and Planning,Equipment and Tools - General,29/12/2014,npc000496,17.45
Lancaster City Council,30UH,Nisbets,Health & Housing,Equipment and Tools - General,04/11/2014,bpc001947,74.97
Lancaster City Council,30UH,Nisbets,Health & Housing,Equipment and Tools - General,01/12/2014,bpc002083,12.99
Lancaster City Council,30UH,Nisbets,Health & Housing,Equipment and Tools - General,18/12/2014,bpc002182,88.91
Lancaster City Council,30UH,Nisbets,Health & Housing,Materials - General,10/11/2014,bpc001968,19.99
Lancaster City Council,30UH,Nisbets,Environmental Services,Equipment and Tools - General,28/10/2014,26023,334.98
Lancaster City Council,30UH,Nisbets,Environmental Services,Equipment and Tools - General,30/10/2014,26049,166.45
Lancaster City Council,30UH,Nisbets,Environmental Services,Equipment and Tools - General,01/12/2014,26569,94.97
Lancaster City Council,30UH,Nisbets,Environmental Services,Equipment and Tools - General,11/12/2014,26752,-0.01
Lancaster City Council,30UH,Nisbets,Health & Housing,Equipment and Tools - General,03/11/2014,bpc001939,32.83
Lancaster City Council,30UH,Northern Rail,Health & Housing,Service Training Budget,28/11/2014,spc000654,82.70
Lancaster City Council,30UH,Northern Rail,Health & Housing,Use Of Public Tpt - Officers,04/11/2014,bpc001955,78.70
Lancaster City Council,30UH,Northern Rail,Health & Housing,Use Of Public Tpt - Officers,08/12/2014,bpc002124,3.00
Lancaster City Council,30UH,Northern Rail,Health & Housing,Accommodation,24/11/2014,spc000649,64.00
Lancaster City Council,30UH,Northern Rail,Health & Housing,Service Training Budget,03/10/2014,spc000547,30.30
Lancaster City Council,30UH,Northern Rail,Health & Housing,Service Training Budget,15/10/2014,spc000565,147.70
Lancaster City Council,30UH,Northern Rail,Health & Housing,Service Training Budget,27/10/2014,spc000582,64.30
Lancaster City Council,30UH,Northern Rail,Health & Housing,Service Training Budget,18/11/2014,spc000630,90.40
Lancaster City Council,30UH,Northern Rail,Health & Housing,Service Training Budget,21/11/2014,spc000642,83.70
Lancaster City Council,30UH,Northern Rail,Resources,Use Of Public Tpt - Officers,20/10/2014,ppc000178,17.20
Lancaster City Council,30UH,Northern Rail,Resources,Use Of Public Tpt - Officers,25/11/2014,ppc000198,17.20
Lancaster City Council,30UH,Northern Rail,Health & Housing,Service Training Budget,06/10/2014,spc000550,73.50
Lancaster City Council,30UH,Northern Trains,Health & Housing,Service Training Budget,20/11/2014,bpc001997,61.10
Lancaster City Council,30UH,Northern Trains,Health & Housing,Service Training Budget,05/12/2014,bpc002115,12.50
Lancaster City Council,30UH,Northern Trains,Health & Housing,Use Of Public Tpt - Officers,07/11/2014,bpc001960,11.40
Lancaster City Council,30UH,Notice Board Company (UK) Ltd,Environmental Services,Capital Payments To Contractors,22/10/2014,25960,1800.00
Lancaster City Council,30UH,not just balloons,Health & Housing,Equipment and Tools - General,03/11/2014,bpc001920,27.49
Lancaster City Council,30UH,Nyfast,Environmental Services,Equipment and Tools - General,28/10/2014,26031,45.95
Lancaster City Council,30UH,OAK TO GO(AMAZON,Health & Housing,Printing & Stationery,03/11/2014,hpc000141,51.46
Lancaster City Council,30UH,Office Coffee Company ,Resources,Catering Provisions,09/10/2014,ppc000175,301.70
Lancaster City Council,30UH,Office Depot,Environmental Services,Equipment and Tools - General,23/10/2014,25976,98.10
Lancaster City Council,30UH,Office Depot,Environmental Services,Printing & Stationery,20/10/2014,25893,202.16
Lancaster City Council,30UH,Office Depot,Environmental Services,Printing & Stationery,24/11/2014,26463,161.84
Lancaster City Council,30UH,Office Depot,Environmental Services,Printing & Stationery,19/12/2014,26882,105.19
Lancaster City Council,30UH,OfficeFurnitureOnline,Health & Housing,Equipment and Tools - General,18/12/2014,bpc002192,226.80
Lancaster City Council,30UH,OfficeFurnitureOnline,Health & Housing,Printing & Stationery,21/11/2014,bpc002014,118.00
Lancaster City Council,30UH,Office stationary,Health & Housing,Promenade Passes,29/10/2014,bpc001886,18.27
Lancaster City Council,30UH,ONE STOP PLASTICS,Environmental Services,R & M - Buildings,17/12/2014,26820,158.70
Lancaster City Council,30UH,On Safe Lines QHSESoftware Ltd,Health & Housing,Corporate Safety,31/10/2014,spc000591,125.42
Lancaster City Council,30UH,Orchard Hotel,Health & Housing,Service Training Budget,04/11/2014,spc000598,87.50
Lancaster City Council,30UH,Orchard Hotel,Health & Housing,Service Training Budget,04/11/2014,spc000599,87.50
Lancaster City Council,30UH,Original Organics,Regeneration and Planning,Equipment and Tools - General,13/11/2014,npc000437,40.79
Lancaster City Council,30UH,PADS,Environmental Services,Materials - General,23/10/2014,25971,145.38
Lancaster City Council,30UH,PADS,Environmental Services,Materials - General,05/11/2014,26194,145.38
Lancaster City Council,30UH,PADS,Environmental Services,Materials - General,27/11/2014,26524,145.38
Lancaster City Council,30UH,PADS,Environmental Services,Materials - General,03/12/2014,26648,96.92
Lancaster City Council,30UH,Palintest,Health & Housing,Equipment and Tools - General,03/11/2014,spc000595,70.10
Lancaster City Council,30UH,P &amp; L Industrial ,Health & Housing,Equipment and Tools - General,27/11/2014,bpc002071,21.35
Lancaster City Council,30UH,PASS Ltd,Health & Housing,Contracted Services,19/11/2014,spc000637,209.95
Lancaster City Council,30UH,PASS Ltd,Health & Housing,Contracted Services,19/11/2014,spc000638,1808.50
Lancaster City Council,30UH,PASS Ltd,Health & Housing,Contracted Services,09/12/2014,spc000681,209.93
Lancaster City Council,30UH,Paws & Claws,Health & Housing,Equipment and Tools - General,18/12/2014,spc000703,12.48
Lancaster City Council,30UH,PAYPAL &quot;TA RUS 2018,Health & Housing,Training Allowances,17/12/2014,bpc002178,130.00
Lancaster City Council,30UH,Paypoint,Regeneration and Planning,Services - General,05/11/2014,26195,124.12
Lancaster City Council,30UH,Paypoint,Regeneration and Planning,Services - General,05/11/2014,26491,39.70
Lancaster City Council,30UH,Paypoint,Regeneration and Planning,Software Purchase\Licences,05/11/2014,26195,10.00
Lancaster City Council,30UH,Paypoint,Regeneration and Planning,Software Purchase\Licences,05/11/2014,26491,10.00
Lancaster City Council,30UH,PC World,Health & Housing,Computer Consumables,04/11/2014,bpc001948,449.16
Lancaster City Council,30UH,PC World,Health & Housing,Equipment and Tools - General,06/10/2014,spc000551,33.99
Lancaster City Council,30UH,Pendle Borough ,Governance,Performance Improvement Support,11/12/2014,lpc000189,949.02
Lancaster City Council,30UH,Pendle Leisure Trust,Health & Housing,Hospitality,16/10/2014,bpc001856,90.00
Lancaster City Council,30UH,PEN MOBILE SOLUTIONS,Health & Housing,Equipment Funded by Reserves,03/12/2014,hpc000156,36.25
Lancaster City Council,30UH,Peregrine Livefoods Ltd,Environmental Services,Equipment and Tools - General,20/10/2014,25890,1091.99
Lancaster City Council,30UH,Peregrine Livefoods Ltd,Environmental Services,Materials - General,20/10/2014,25888,37.29
Lancaster City Council,30UH,Peregrine Livefoods Ltd,Environmental Services,Materials - General,06/11/2014,26203,24.35
Lancaster City Council,30UH,Peregrine Livefoods Ltd,Environmental Services,Materials - General,18/11/2014,26368,26.91
Lancaster City Council,30UH,Peregrine Livefoods Ltd,Environmental Services,Materials - General,02/12/2014,26584,41.14
Lancaster City Council,30UH,Peregrine Livefoods Ltd,Environmental Services,Materials - General,19/12/2014,26876,27.10
Lancaster City Council,30UH,Peregrine Livefoods Ltd,Environmental Services,Materials - General,20/10/2014,25897,58.70
Lancaster City Council,30UH,PHM &amp; Taxi Monthly,Governance,Subscriptions,17/10/2014,lpc000162,30.00
Lancaster City Council,30UH,Physical Company,Health & Housing,Equipment and Tools - General,20/11/2014,bpc002006,962.65
Lancaster City Council,30UH,play.com,Governance,Printing & Stationery,18/12/2014,lpc000191,36.90
Lancaster City Council,30UH,Playtime UK Ltd,Health & Housing,Services - General,12/11/2014,bpc001987,45.00
Lancaster City Council,30UH,Playtime UK Ltd,Health & Housing,Services - General,12/11/2014,bpc001984,30.00
Lancaster City Council,30UH,Post Office,Governance,Postages,05/12/2014,dpc000224,26.60
Lancaster City Council,30UH,Post Office,Health & Housing,Services - General,10/10/2014,spc000559,2.15
Lancaster City Council,30UH,Post Office,Health & Housing,Services - General,05/12/2014,spc000675,10.85
Lancaster City Council,30UH,Post Office,Health & Housing,Services - General,17/12/2014,spc000692,0.97
Lancaster City Council,30UH,Post Office,Health & Housing,Services - General,14/10/2014,spc000563,4.30
Lancaster City Council,30UH,Post Office,Resources,Postage (Internal),05/12/2014,ppc000211,61.36
Lancaster City Council,30UH,Poundland,Health & Housing,Equipment and Tools - General,13/10/2014,bpc001838,20.00
Lancaster City Council,30UH,Poundland,Health & Housing,Services - General,18/11/2014,bpc001993,5.00
Lancaster City Council,30UH,Poundland,Regeneration and Planning,Entertainment Fees,04/11/2014,26167,10.00
Lancaster City Council,30UH,Poundland,Health & Housing,Equipment and Tools - General,24/11/2014,bpc002028,84.17
Lancaster City Council,30UH,Poundstretcher Ltd,Health & Housing,Equipment and Tools - General,27/11/2014,bpc002042,67.64
Lancaster City Council,30UH,Poundstretcher Ltd,Health & Housing,Equipment and Tools - General,24/11/2014,bpc002030,134.94
Lancaster City Council,30UH,Poundstretcher Ltd,Health & Housing,Equipment and Tools - General,03/12/2014,bpc002109,35.88
Lancaster City Council,30UH,Poundstretcher Ltd,Health & Housing,Equipment and Tools - General,04/12/2014,bpc002110,34.05
Lancaster City Council,30UH,Poundstretcher Ltd,Health & Housing,Equipment and Tools - General,17/12/2014,bpc002167,13.32
Lancaster City Council,30UH,Poundstretcher Ltd,Health & Housing,Equipment and Tools - General,22/12/2014,bpc002194,8.33
Lancaster City Council,30UH,Poundstretcher Ltd,Health & Housing,Equipment and Tools - General,27/11/2014,bpc002054,62.60
Lancaster City Council,30UH,Poundstretcher Ltd,Health & Housing,Equipment and Tools - General,13/11/2014,bpc001988,19.85
Lancaster City Council,30UH,Poundstretcher Ltd,Health & Housing,Equipment and Tools - General,24/11/2014,bpc002029,119.18
Lancaster City Council,30UH,premier life stores,Health & Housing,Equipment and Tools - General,03/11/2014,bpc001922,8.14
Lancaster City Council,30UH,Prepaymania (Amazon),Resources,Mobile Telephones,06/10/2014,jpc000222,26.43
Lancaster City Council,30UH,Preston International Hotel,Regeneration and Planning,Exhibitions & Events - Expenses,03/11/2014,npc000424,50.00
Lancaster City Council,30UH,Process Publishing,Regeneration and Planning,Miscellaneous Advertising,04/11/2014,26170,165.00
Lancaster City Council,30UH,Promenade Music,Environmental Services,Exhibitions & Events,20/10/2014,25905,270.00
Lancaster City Council,30UH,Pro production services,Regeneration and Planning,Equipment and Tools - General,20/10/2014,npc000408,32.20
Lancaster City Council,30UH,PROTEC police equipment,Health & Housing,Equipment and Tools - General,15/12/2014,spc000691,21.62
Lancaster City Council,30UH,PRS Alliance,Health & Housing,Services - General,03/10/2014,bpc001792,288.94
Lancaster City Council,30UH,Public Health England,Resources,R & M - Buildings,24/11/2014,ppc000197,37.50
Lancaster City Council,30UH,Pye Motors,Health & Housing,Tenants Participation,09/10/2014,hpc000139,66.67
Lancaster City Council,30UH,Queen Square Med Centre,Governance,Services - Medical Fees,04/11/2014,lpc000169,35.00
Lancaster City Council,30UH,Queen Square Medical Services ,Health & Housing,Services - Medical Fees,13/11/2014,spc000621,25.00
Lancaster City Council,30UH,Queen Square Surgery,Governance,Services - Medical Fees,10/12/2014,lpc000188,35.00
Lancaster City Council,30UH,quicks archery,Health & Housing,Equipment and Tools - General,03/12/2014,bpc002099,86.01
Lancaster City Council,30UH,Rainbow Slush,Environmental Services,Materials For Resale,18/11/2014,26366,191.34
Lancaster City Council,30UH,Rainbow Slush,Environmental Services,Materials For Resale,19/12/2014,26874,156.67
Lancaster City Council,30UH,Ramsdens,Regeneration and Planning,Printing & Stationery,05/11/2014,26575,100.13
Lancaster City Council,30UH,Red Spotted Hanky,Governance,Corporate Training Budget,07/10/2014,lpc000155,72.50
Lancaster City Council,30UH,Red Spotted Hanky,Governance,Corporate Training Budget,07/10/2014,lpc000156,14.50
Lancaster City Council,30UH,Red Spotted Hanky,Governance,Use Of Public Tpt - Officers,05/11/2014,lpc000175,25.10
Lancaster City Council,30UH,Red Spotted Hanky,Governance,Service Training Budget,10/11/2014,dpc000215,93.40
Lancaster City Council,30UH,Red Spotted Hanky,Governance,Service Training Budget,07/10/2014,dpc000201,8.60
Lancaster City Council,30UH,Red Spotted Hanky,Governance,Service Training Budget,10/11/2014,dpc000214,93.40
Lancaster City Council,30UH,Red Spotted Hanky,Governance,Service Training Budget,10/11/2014,dpc000216,93.40
Lancaster City Council,30UH,Regent Park f/station,Health & Housing,Contracted Services,31/10/2014,spc000592,49.00
Lancaster City Council,30UH,Rexel,Environmental Services,R & M - Buildings,22/12/2014,26901,15.00
Lancaster City Council,30UH,Ribble Enviro,Health & Housing,Services - Contaminated Land,04/12/2014,spc000674,168.06
Lancaster City Council,30UH,RJB Stone Ltd,Environmental Services,Materials For Resale,02/12/2014,26586,16.13
Lancaster City Council,30UH,RNIB,Regeneration and Planning,Clothing & Uniforms,14/11/2014,npc000442,5.88
Lancaster City Council,30UH,Rob Harvey,Environmental Services,Equipment and Tools - General,05/12/2014,26671,317.35
Lancaster City Council,30UH,ROBINSONS,Environmental Services,Materials - General,06/11/2014,26212,45.00
Lancaster City Council,30UH,Rosies Wraps,Environmental Services,Prizes,06/11/2014,26217,8.33
Lancaster City Council,30UH,Royal British Legion,Governance,Remembrance Day,22/12/2014,dpc000230,18.50
Lancaster City Council,30UH,Royal British Legion,Governance,Remembrance Day,22/12/2014,dpc000231,20.00
Lancaster City Council,30UH,Royal Mail,Resources,Postage (Internal),26/11/2014,ppc000203,45.90
Lancaster City Council,30UH,Royal Mail,Resources,Postage (Internal),26/11/2014,ppc000204,27.54
Lancaster City Council,30UH,Royal Mail,Resources,Postage (Internal),26/11/2014,ppc000205,7.77
Lancaster City Council,30UH,Royal Mail,Resources,Postage (Internal),26/11/2014,ppc000206,8.88
Lancaster City Council,30UH,Royal Mail,Resources,Postage (Internal),26/11/2014,ppc000207,3.59
Lancaster City Council,30UH,Royal Mail,Regeneration and Planning,Postages,07/11/2014,npc000433,2.34
Lancaster City Council,30UH,Royal Mail,Resources,Postage (Internal),07/11/2014,rpc000042,0.00
Lancaster City Council,30UH,Royal Mail,Health & Housing,Printing & Stationery,16/10/2014,bpc001857,1.11
Lancaster City Council,30UH,RTPI,Regeneration and Planning,Subscriptions,05/12/2014,npc000475,290.00
Lancaster City Council,30UH,Ryman,Resources,Printing & Stationery,13/11/2014,ppc000188,9.72
Lancaster City Council,30UH,Ryman,Resources,Printing & Stationery,02/12/2014,ppc000210,18.11
Lancaster City Council,30UH,Ryman,Resources,R & M - Buildings,13/11/2014,ppc000188,16.65
Lancaster City Council,30UH,Ryman,Resources,R & M - Buildings,26/11/2014,ppc000200,18.30
Lancaster City Council,30UH,Ryman,Governance,Printing & Stationery,31/12/2014,lpc000194,6.66
Lancaster City Council,30UH,Sainsburys,Governance,Remembrance Day,06/11/2014,dpc000212,30.62
Lancaster City Council,30UH,Sainsburys,Health & Housing,Materials For Resale,13/10/2014,bpc001847,12.71
Lancaster City Council,30UH,Sainsburys,Health & Housing,Materials For Resale,27/11/2014,bpc002062,43.00
Lancaster City Council,30UH,Sainsburys,Health & Housing,Service Training Budget,19/11/2014,hpc000147,19.29
Lancaster City Council,30UH,Sainsburys,Health & Housing,Service Training Budget,28/11/2014,spc000656,11.00
Lancaster City Council,30UH,Sainsburys ,Environmental Services,Equipment and Tools - General,19/12/2014,26881,55.81
Lancaster City Council,30UH,S and M Marshall Autocentre Lt,Environmental Services,Repair & Mtce Of Vehicles,02/12/2014,26585,20.83
Lancaster City Council,30UH,Sawley Fine Arts,Regeneration and Planning,Materials For Resale,05/11/2014,26196,58.05
Lancaster City Council,30UH,Scan Computers International L,Resources,Infrastructure - Update & Maintenance,06/10/2014,jpc000220,171.82
Lancaster City Council,30UH,SCHOOLSCAPES,Environmental Services,Materials - General,18/12/2014,26868,1636.00
Lancaster City Council,30UH,Scotforth Dry Cleaners,Health & Housing,Exhibitions & Events,04/10/2014,bpc001795,35.00
Lancaster City Council,30UH,Scotforth Dry Cleaners,Health & Housing,Exhibitions & Events,26/10/2014,bpc001877,70.42
Lancaster City Council,30UH,Screwfix,Health & Housing,Equipment and Tools - General,01/10/2014,bpc001764,15.25
Lancaster City Council,30UH,Screwfix,Health & Housing,Equipment and Tools - General,03/11/2014,bpc001906,58.33
Lancaster City Council,30UH,Screwfix,Health & Housing,Equipment and Tools - General,03/11/2014,bpc001910,61.41
Lancaster City Council,30UH,Screwfix,Health & Housing,Other Cleaning,03/11/2014,bpc001914,12.91
Lancaster City Council,30UH,Screwfix,Health & Housing,Office Equipment,16/10/2014,bpc001852,66.65
Lancaster City Council,30UH,Screwfix,Environmental Services,Equipment and Tools - General,19/12/2014,26878,38.72
Lancaster City Council,30UH,Screwfix,Regeneration and Planning,Equipment and Tools - General,22/11/2014,npc000453,124.98
Lancaster City Council,30UH,Screwfix,Environmental Services,Materials - General,14/11/2014,26324,49.99
Lancaster City Council,30UH,Screwfix,Health & Housing,R & M - Buildings,27/11/2014,bpc002065,27.70
Lancaster City Council,30UH,Screwfix,Health & Housing,Equipment and Tools - General,26/11/2014,bpc002034,4.98
Lancaster City Council,30UH,Screwfix,Health & Housing,Equipment and Tools - General,07/12/2014,bpc002119,1.79
Lancaster City Council,30UH,Screwfix,Health & Housing,Equipment and Tools - General,07/12/2014,bpc002120,64.68
Lancaster City Council,30UH,Screwfix,Health & Housing,Equipment and Tools - General,21/11/2014,bpc002024,14.83
Lancaster City Council,30UH,Seasons-Direct-Online  PAYPAL,Health & Housing,Equipment and Tools - General,12/12/2014,bpc002147,79.99
Lancaster City Council,30UH,Sefton Council,Regeneration and Planning,Conferences & Seminars,30/12/2014,npc000498,50.00
Lancaster City Council,30UH,Sefton Council,Regeneration and Planning,Service Training Budget,30/12/2014,npc000498,50.00
Lancaster City Council,30UH,Senetic,Resources,Purchase Of Equipment,18/12/2014,jpc000286,342.36
Lancaster City Council,30UH,Seton,Environmental Services,Equipment and Tools - General,17/11/2014,26343,1085.90
Lancaster City Council,30UH,Shedstore,Environmental Services,Grounds Maintenance - Other,23/10/2014,25975,108.32
Lancaster City Council,30UH,Shop4allsorts Ltd,Health & Housing,Children & Young People,09/12/2014,bpc002130,3.58
Lancaster City Council,30UH,SiLC,Health & Housing,Services - Contaminated Land,19/12/2014,spc000706,55.00
Lancaster City Council,30UH,SJ and P Fawcett,Environmental Services,Clothing & Uniforms,20/10/2014,25911,174.97
Lancaster City Council,30UH,skatehut,Health & Housing,Equipment and Tools - General,03/11/2014,bpc001912,42.24
Lancaster City Council,30UH,Smitcare Ltd,Health & Housing,Materials - General,27/10/2014,spc000583,238.50
Lancaster City Council,30UH,Society of London Theatre,Regeneration and Planning,Concerts - General,11/12/2014,26763,37.60
Lancaster City Council,30UH,Solar centre,Health & Housing,Sanctuary Scheme,17/10/2014,spc000566,519.11
Lancaster City Council,30UH,Solar centre,Health & Housing,Sanctuary Scheme,27/10/2014,spc000585,212.71
Lancaster City Council,30UH,Solarwinds Europe,Resources,Infrastructure - Update & Maintenance,07/10/2014,jpc000225,65.00
Lancaster City Council,30UH,Solon security,Health & Housing,Sanctuary Scheme,17/10/2014,spc000567,450.25
Lancaster City Council,30UH,Solon security,Health & Housing,Sanctuary Scheme,27/10/2014,spc000584,202.00
Lancaster City Council,30UH,Solon security,Health & Housing,Sanctuary Scheme,11/11/2014,spc000614,97.00
Lancaster City Council,30UH,Spar,Health & Housing,Materials For Resale,11/10/2014,bpc001834,1.67
Lancaster City Council,30UH,Spar,Health & Housing,Materials For Resale,26/10/2014,bpc001878,6.66
Lancaster City Council,30UH,Spar,Health & Housing,Materials For Resale,31/12/2014,bpc002199,2.39
Lancaster City Council,30UH,Spar,Environmental Services,Materials For Resale,14/10/2014,25837,8.00
Lancaster City Council,30UH,Spar,Health & Housing,Materials For Resale,31/12/2014,bpc002198,7.50
Lancaster City Council,30UH,Spar Halls Milnthorpe,Regeneration and Planning,Petrol & Derv,13/10/2014,npc000387,21.32
Lancaster City Council,30UH,Sports Direct,Health & Housing,Clothing & Uniforms,03/11/2014,bpc001908,26.66
Lancaster City Council,30UH,Sports Direct,Health & Housing,Clothing & Uniforms,23/10/2014,bpc001874,14.99
Lancaster City Council,30UH,Sports Direct,Health & Housing,Clothing & Uniforms,20/11/2014,bpc002012,240.37
Lancaster City Council,30UH,Sports Direct,Health & Housing,Clothing & Uniforms,27/11/2014,bpc002035,-130.00
Lancaster City Council,30UH,Sports Direct,Health & Housing,Clothing & Uniforms,03/12/2014,bpc002105,130.82
Lancaster City Council,30UH,Sports Direct,Health & Housing,Clothing & Uniforms,15/12/2014,bpc002158,102.55
Lancaster City Council,30UH,Sports Direct,Health & Housing,Equipment and Tools - General,03/11/2014,bpc001935,13.32
Lancaster City Council,30UH,Sports Direct,Health & Housing,Equipment and Tools - General,08/12/2014,bpc002121,41.66
Lancaster City Council,30UH,Sports Direct ,Health & Housing,Premises Related Insurance,28/10/2014,bpc001879,175.36
Lancaster City Council,30UH,Sports Direct,Health & Housing,Clothing & Uniforms,20/11/2014,bpc002011,69.12
Lancaster City Council,30UH,Sports Direct,Health & Housing,Clothing & Uniforms,21/11/2014,bpc002016,-53.72
Lancaster City Council,30UH,Sports Direct,Health & Housing,Clothing & Uniforms,27/11/2014,bpc002070,24.99
Lancaster City Council,30UH,Sports Direct,Health & Housing,Clothing & Uniforms,06/10/2014,bpc001797,24.99
Lancaster City Council,30UH,sportsshoes.com,Health & Housing,Equipment and Tools - General,03/11/2014,bpc001918,82.88
Lancaster City Council,30UH,sportsshoes.com,Health & Housing,Equipment and Tools - General,03/11/2014,bpc001919,-24.45
Lancaster City Council,30UH,STA,Health & Housing,Materials For Resale,13/10/2014,bpc001850,240.00
Lancaster City Council,30UH,STA ,Health & Housing,Materials - General,11/12/2014,bpc002138,33.33
Lancaster City Council,30UH,Stagecoach,Regeneration and Planning,Stagecoach Tickets,17/10/2014,25876,11414.24
Lancaster City Council,30UH,Stagecoach,Regeneration and Planning,Stagecoach Tickets,05/11/2014,26296,645.42
Lancaster City Council,30UH,Stagecoach,Regeneration and Planning,Stagecoach Tickets,27/11/2014,26519,12436.77
Lancaster City Council,30UH,Stagecoach,Regeneration and Planning,Stagecoach Tickets,01/12/2014,26741,646.92
Lancaster City Council,30UH,Stagecoach,Regeneration and Planning,Stagecoach Tickets,11/12/2014,26764,9242.29
Lancaster City Council,30UH,Stamps Direct,Environmental Services,Printing & Stationery,19/12/2014,26879,26.03
Lancaster City Council,30UH,Stamps Direct,Environmental Services,Printing & Stationery,28/11/2014,26554,14.90
Lancaster City Council,30UH,Star Editions Ltd,Regeneration and Planning,Materials For Resale,27/11/2014,26516,152.41
Lancaster City Council,30UH,START TRAFFIC,Environmental Services,Materials - General,12/12/2014,26783,118.00
Lancaster City Council,30UH,Stationery 4 less,Environmental Services,Printing & Stationery,03/11/2014,26093,41.40
Lancaster City Council,30UH,Stationery 4 less,Environmental Services,Printing & Stationery,10/10/2014,25791,4.93
Lancaster City Council,30UH,Station Garage Arnside,Regeneration and Planning,Petrol & Derv,16/12/2014,npc000483,48.30
Lancaster City Council,30UH,Station Garage Arnside,Regeneration and Planning,Petrol & Derv,19/11/2014,npc000447,59.12
Lancaster City Council,30UH,Station Pub,Regeneration and Planning,Exhibitions & Events - Expenses,27/10/2014,npc000414,54.92
Lancaster City Council,30UH,St Winifreds,Health & Housing,Services - Bed and Breakfast,28/11/2014,spc000655,90.00
Lancaster City Council,30UH,St winifreds Hotel,Health & Housing,Homelessness Priority Need Order,17/12/2014,spc000698,120.00
Lancaster City Council,30UH,St winifreds Hotel,Health & Housing,Services - Bed and Breakfast,02/12/2014,spc000668,30.00
Lancaster City Council,30UH,St winifreds Hotel,Health & Housing,Services - Bed and Breakfast,21/10/2014,spc000576,55.00
Lancaster City Council,30UH,St Winifreds hotel,Health & Housing,Services - Bed and Breakfast,21/10/2014,spc000575,30.00
Lancaster City Council,30UH,St winifreds Hotel,Health & Housing,Services - Bed and Breakfast,24/11/2014,spc000650,120.00
Lancaster City Council,30UH,St Winifreds Hotel,Health & Housing,Homelessness Priority Need Order,09/12/2014,spc000679,30.00
Lancaster City Council,30UH,St Winifreds Hotel,Health & Housing,Services - Bed and Breakfast,07/11/2014,spc000609,90.00
Lancaster City Council,30UH,St Winifreds Hotel,Health & Housing,Services - Bed and Breakfast,12/11/2014,spc000619,30.00
Lancaster City Council,30UH,St Winifreds Hotel,Health & Housing,Services - Bed and Breakfast,12/11/2014,spc000620,150.00
Lancaster City Council,30UH,St Winifreds Hotel,Health & Housing,Services - Bed and Breakfast,14/11/2014,spc000626,30.00
Lancaster City Council,30UH,St Winifreds Hotel,Health & Housing,Services - Bed and Breakfast,14/11/2014,spc000627,90.00
Lancaster City Council,30UH,St Winifreds Hotel,Health & Housing,Services - Bed and Breakfast,20/11/2014,spc000640,120.00
Lancaster City Council,30UH,St Winifreds Hotel,Health & Housing,Services - Bed and Breakfast,21/11/2014,spc000641,30.00
Lancaster City Council,30UH,St Winifreds Hotel,Health & Housing,Services - Bed and Breakfast,21/11/2014,spc000643,90.00
Lancaster City Council,30UH,St Winifreds Hotel,Health & Housing,Services - Bed and Breakfast,21/11/2014,spc000644,90.00
Lancaster City Council,30UH,St Winifreds Hotel,Health & Housing,Services - Bed and Breakfast,21/11/2014,spc000645,90.00
Lancaster City Council,30UH,St Winifreds Hotel,Health & Housing,Services - Bed and Breakfast,03/12/2014,spc000670,150.00
Lancaster City Council,30UH,St Winifreds Hotel,Health & Housing,Services - Bed and Breakfast,08/12/2014,spc000677,120.00
Lancaster City Council,30UH,St Winifreds Hotel,Health & Housing,Services - Bed and Breakfast,08/12/2014,spc000678,55.00
Lancaster City Council,30UH,St Winifreds Hotel,Health & Housing,Services - Bed and Breakfast,12/12/2014,spc000688,90.00
Lancaster City Council,30UH,Superbowl morecambe,Health & Housing,Services - General,17/12/2014,bpc002164,50.00
Lancaster City Council,30UH,superpartymasks.co.uk,Health & Housing,Services - General,27/11/2014,bpc002067,24.89
Lancaster City Council,30UH,Swimming Teacheers Association,Health & Housing,Service Training Budget,03/12/2014,bpc002088,65.00
Lancaster City Council,30UH,Swim Shop,Health & Housing,Equipment and Tools - General,03/11/2014,bpc001933,49.83
Lancaster City Council,30UH,TDP Ltd,Regeneration and Planning,R & M - Sea & River / Promenade,16/12/2014,npc000490,258.77
Lancaster City Council,30UH,Tesco,Health & Housing,Children & Young People,28/10/2014,bpc001883,19.22
Lancaster City Council,30UH,Tetra handsets and accessories,Health & Housing,Equipment and Tools - General,30/10/2014,spc000589,131.30
Lancaster City Council,30UH,Theatre Tokens,Regeneration and Planning,Concerts - General,01/12/2014,26642,47.00
Lancaster City Council,30UH,The Chartered Institute Of Env. Health,Health & Housing,Service Training Budget,17/10/2014,spc000573,710.00
Lancaster City Council,30UH,The Chartered Institute Of Env. Health,Health & Housing,Service Training Budget,06/11/2014,spc000607,200.00
Lancaster City Council,30UH,The Chartered Institute Of Env. Health,Health & Housing,Service Training Budget,14/11/2014,spc000625,140.00
Lancaster City Council,30UH,The Coaster Company,Regeneration and Planning,Materials For Resale,05/11/2014,26576,90.58
Lancaster City Council,30UH,The Cooperative,Regeneration and Planning,Catering Provisions,24/11/2014,npc000455,11.23
Lancaster City Council,30UH,The Flag Shop,Regeneration and Planning,Conferences & Seminars,05/11/2014,26350,91.48
Lancaster City Council,30UH,The Happy Hutch Company,Environmental Services,Equipment and Tools - General,25/11/2014,26468,342.00
Lancaster City Council,30UH,The Healthy House Ltd,Health & Housing,Clothing & Uniforms,16/10/2014,bpc001858,53.67
Lancaster City Council,30UH,The Judges Lodgings York,Health & Housing,Subsistence,08/12/2014,bpc002123,12.50
Lancaster City Council,30UH,The Koi Pool,Environmental Services,Materials - General,24/10/2014,25985,325.02
Lancaster City Council,30UH,the Law Soceity ,Governance,Professional Fees Etc,13/10/2014,lpc000158,352.00
Lancaster City Council,30UH,The Post Office,Health & Housing,Services - General,11/11/2014,spc000612,2.03
Lancaster City Council,30UH,The Results Driven Group Ltd,Health & Housing,Service Training Budget,17/12/2014,bpc002165,1428.48
Lancaster City Council,30UH,The Retention People Fitronics,Health & Housing,Service Training Budget,12/12/2014,bpc002139,934.00
Lancaster City Council,30UH,The Safe Shop,Regeneration and Planning,Equipment and Tools - General,07/10/2014,npc000385,209.99
Lancaster City Council,30UH,The Safety Shack,Regeneration and Planning,Management Plan Projects,15/10/2014,npc000399,47.95
Lancaster City Council,30UH,The Spill Control Centre,Environmental Services,Equipment and Tools - General,28/10/2014,26030,85.00
Lancaster City Council,30UH,The Sun Cafe,Health & Housing,Subsistence,10/11/2014,bpc001969,20.10
Lancaster City Council,30UH,The Trainline,Health & Housing,Materials - General,17/10/2014,spc000568,63.75
Lancaster City Council,30UH,The Trainline,Governance,Service Training Budget,17/10/2014,lpc000163,30.24
Lancaster City Council,30UH,The Trainline,Governance,Service Training Budget,17/10/2014,lpc000164,13.82
Lancaster City Council,30UH,The Trainline,Governance,Use Of Public Tpt - Officers,16/10/2014,lpc000160,88.23
Lancaster City Council,30UH,The Trainline,Governance,Use Of Public Tpt - Officers,05/12/2014,lpc000185,15.25
Lancaster City Council,30UH,The Trainline,Governance,Professional Fees Etc,07/11/2014,lpc000176,57.22
Lancaster City Council,30UH,The Trainline,Governance,Legal & Court Costs,28/10/2014,lpc000168,39.63
Lancaster City Council,30UH,The Trainline,Governance,Use Of Public Tpt - Officers,05/12/2014,lpc000184,32.30
Lancaster City Council,30UH,The Trainline,Governance,Service Training Budget,15/12/2014,lpc000190,27.69
Lancaster City Council,30UH,The Trainline,Health & Housing,Service Training Budget,03/12/2014,hpc000159,15.00
Lancaster City Council,30UH,The Trainline,Regeneration and Planning,Use Of Public Tpt - Officers,02/10/2014,25680,227.05
Lancaster City Council,30UH,The Trainline,Health & Housing,Children & Young People,03/12/2014,hpc000160,7.95
Lancaster City Council,30UH,The Trainline,Health & Housing,Service Training Budget,03/12/2014,hpc000158,40.54
Lancaster City Council,30UH,The Trainline,Health & Housing,Service Training Budget,03/12/2014,hpc000163,15.00
Lancaster City Council,30UH,The Veterinary Health Centre,Environmental Services,Services - Vets,17/11/2014,26346,21.25
Lancaster City Council,30UH,The Works,Health & Housing,Equipment and Tools - General,24/11/2014,spc000647,9.00
Lancaster City Council,30UH,The Works,Health & Housing,Equipment and Tools - General,24/11/2014,spc000648,0.83
Lancaster City Council,30UH,Thomas and Graham,Health & Housing,Equipment and Tools - General,29/10/2014,bpc001885,71.13
Lancaster City Council,30UH,Thomas Graham,Health & Housing,Materials - General,06/11/2014,spc000606,15.51
Lancaster City Council,30UH,Thomas Graham,Health & Housing,Materials - General,10/11/2014,spc000610,9.51
Lancaster City Council,30UH,Thomas Graham,Health & Housing,Materials - General,18/11/2014,spc000633,2.14
Lancaster City Council,30UH,Thomas Graham,Health & Housing,Materials - General,18/11/2014,spc000634,8.33
Lancaster City Council,30UH,Thomas Graham,Health & Housing,Materials - General,27/11/2014,spc000652,10.86
Lancaster City Council,30UH,Thomas Graham,Health & Housing,Materials - General,27/11/2014,spc000653,9.08
Lancaster City Council,30UH,Thomas Graham,Health & Housing,Materials - General,04/12/2014,spc000673,8.85
Lancaster City Council,30UH,Thomas Graham,Health & Housing,Materials - General,18/12/2014,spc000704,5.09
Lancaster City Council,30UH,Thomas Graham,Health & Housing,Materials - General,18/12/2014,spc000705,12.73
Lancaster City Council,30UH,Thomas Graham,Health & Housing,Materials - General,09/10/2014,spc000554,17.94
Lancaster City Council,30UH,Thomas Graham,Health & Housing,Materials - General,09/10/2014,spc000555,47.69
Lancaster City Council,30UH,Thomas Graham,Health & Housing,Materials - General,10/10/2014,spc000560,33.87
Lancaster City Council,30UH,Thomas Graham,Health & Housing,Materials - General,24/10/2014,spc000578,22.22
Lancaster City Council,30UH,Thomas Graham,Health & Housing,Materials - General,24/10/2014,spc000579,6.12
Lancaster City Council,30UH,Thomas Graham,Health & Housing,Materials - General,24/10/2014,spc000580,12.54
Lancaster City Council,30UH,Thomas Graham,Health & Housing,Sanctuary Scheme,10/10/2014,spc000561,4.05
Lancaster City Council,30UH,Ticket Mart Limited,Regeneration and Planning,Printing & Stationery,13/10/2014,25812,367.20
Lancaster City Council,30UH,Timpson Locksmiths Limited,Resources,Fixtures & Fittings - General,31/10/2014,ppc000184,8.33
Lancaster City Council,30UH,Timpson Locksmiths Limited,Resources,Sundry Expenses,02/10/2014,ppc000171,33.33
Lancaster City Council,30UH,Timpsons,Governance,Office Equipment,08/12/2014,lpc000186,7.00
Lancaster City Council,30UH,Timpsons,Health & Housing,Equipment and Tools - General,03/11/2014,bpc001917,30.00
Lancaster City Council,30UH,Timpsons,Regeneration and Planning,Deposits,14/11/2014,npc000443,37.50
Lancaster City Council,30UH,TP Express,Health & Housing,Tenants Participation,19/11/2014,hpc000148,77.50
Lancaster City Council,30UH,TP Express,Regeneration and Planning,Use Of Public Tpt - Officers,03/10/2014,npc000374,16.50
Lancaster City Council,30UH,TP Express,Regeneration and Planning,Use Of Public Tpt - Officers,21/10/2014,npc000410,19.00
Lancaster City Council,30UH,TP Express,Regeneration and Planning,Use Of Public Tpt - Officers,21/11/2014,npc000451,110.10
Lancaster City Council,30UH,Tracks 2000,Health & Housing,Equipment and Tools - General,06/10/2014,bpc001803,525.00
Lancaster City Council,30UH,Trader Supplies,Environmental Services,Equipment and Tools - General,06/11/2014,26209,15.62
Lancaster City Council,30UH,Trader Supplies ,Environmental Services,Equipment and Tools - General,06/11/2014,26213,254.98
Lancaster City Council,30UH,Trade scanners ,Governance,Software Miscellaneous,21/11/2014,dpc000219,762.00
Lancaster City Council,30UH,Trade Scanners,Governance,Software Miscellaneous,05/12/2014,dpc000222,762.00
Lancaster City Council,30UH,Trade Scanners,Governance,Software Miscellaneous,05/12/2014,dpc000223,762.00
Lancaster City Council,30UH,Tradition Giftware Ltd,Regeneration and Planning,Materials For Resale,05/11/2014,26253,66.44
Lancaster City Council,30UH,Transpennie Express,Office of the Chief Executive,Use Of Public Tpt - Officers,09/10/2014,mpc000021,19.10
Lancaster City Council,30UH,Transpennie Express,Regeneration and Planning,Use Of Public Tpt - Officers,13/10/2014,npc000388,9.80
Lancaster City Council,30UH,Transpennie Express,Health & Housing,Children & Young People,02/12/2014,bpc002084,10.40
Lancaster City Council,30UH,Travellers Choice,Health & Housing,Tpt & Plant - Casual Hire,31/10/2014,bpc001899,260.00
Lancaster City Council,30UH,Travellers Choice,Regeneration and Planning,Stagecoach Tickets,01/12/2014,26641,536.00
Lancaster City Council,30UH,Travelodge,Regeneration and Planning,AONB Executive Support,19/11/2014,npc000445,68.33
Lancaster City Council,30UH,Travelodge,Regeneration and Planning,AONB Executive Support,19/11/2014,npc000446,4.45
Lancaster City Council,30UH,Travis perkins,Health & Housing,Contracted Services,27/10/2014,spc000586,10.56
Lancaster City Council,30UH,Travis Perkins,Environmental Services,Equipment and Tools - General,19/12/2014,26875,16.44
Lancaster City Council,30UH,Travis Perkins,Environmental Services,R & M - Buildings,28/11/2014,26545,44.10
Lancaster City Council,30UH,Travis Perkins,Regeneration and Planning,Clothing & Uniforms,07/10/2014,npc000384,6.74
Lancaster City Council,30UH,Travis Perkins,Regeneration and Planning,Equipment and Tools - General,07/10/2014,npc000384,74.74
Lancaster City Council,30UH,Tri Ballons Ltd  PAYPAL,Health & Housing,Equipment and Tools - General,12/12/2014,bpc002146,19.90
Lancaster City Council,30UH,TWO WESTS AND ELLIOT,Environmental Services,Materials - General,23/10/2014,25970,73.28
Lancaster City Council,30UH,UK Paper Rolls,Environmental Services,Printing & Stationery,17/11/2014,26339,62.10
Lancaster City Council,30UH,uk wristbands,Health & Housing,Equipment and Tools - General,27/11/2014,bpc002064,90.94
Lancaster City Council,30UH,Ultimate Outdoors,Health & Housing,Clothing & Uniforms,17/12/2014,bpc002172,19.25
Lancaster City Council,30UH,Uncle Joes,Regeneration and Planning,Materials For Resale,05/11/2014,26255,80.96
Lancaster City Council,30UH,United Utilities,Health & Housing,Water Services,16/10/2014,bpc001854,122.78
Lancaster City Council,30UH,United Utilities,Health & Housing,Water Services,28/11/2014,bpc002075,2591.47
Lancaster City Council,30UH,United Utilities,Health & Housing,Water Services,18/12/2014,bpc002186,245.56
Lancaster City Council,30UH,United Utilities,Environmental Services,Water Services,20/10/2014,25908,6302.52
Lancaster City Council,30UH,Valentino`s Displays Ltd,Health & Housing,Equipment and Tools - General,07/11/2014,bpc001962,27.90
Lancaster City Council,30UH,Valley Training,Health & Housing,Equipment and Tools - General,17/10/2014,spc000571,54.00
Lancaster City Council,30UH,Valley Training,Health & Housing,Equipment and Tools - General,17/10/2014,spc000572,42.00
Lancaster City Council,30UH,Valley Training,Health & Housing,Service Training Budget,06/10/2014,spc000549,399.00
Lancaster City Council,30UH,VEHICLE TAX,Environmental Services,Vehicle Licences,21/10/2014,25948,227.50
Lancaster City Council,30UH,Versapak,Environmental Services,Office Equipment,21/11/2014,26432,76.76
Lancaster City Council,30UH,Viking,Health & Housing,Printing & Stationery,30/10/2014,bpc001889,555.47
Lancaster City Council,30UH,Viking,Health & Housing,Printing & Stationery,05/11/2014,bpc001958,131.60
Lancaster City Council,30UH,Viking,Regeneration and Planning,Printing & Stationery,20/10/2014,25907,101.31
Lancaster City Council,30UH,Viking,Regeneration and Planning,Services - General,05/11/2014,npc000430,39.98
Lancaster City Council,30UH,Viking ,Health & Housing,Printing & Stationery,04/11/2014,bpc001950,79.99
Lancaster City Council,30UH,Viking Stage Lighting,Regeneration and Planning,Exhibitions & Events - Guarantees,29/12/2014,npc000497,1281.00
Lancaster City Council,30UH,Virgin Trains,Resources,Use Of Public Tpt - Officers,31/10/2014,fpc000065,48.40
Lancaster City Council,30UH,Virgin Trains,Resources,Office Equipment,10/12/2014,rpc000046,8.60
Lancaster City Council,30UH,Virgin Trains,Resources,Use Of Public Tpt - Officers,04/12/2014,fpc000072,76.40
Lancaster City Council,30UH,Virgin Trains,Resources,Use Of Public Tpt - Officers,04/12/2014,fpc000073,16.90
Lancaster City Council,30UH,Virgin Trains,Governance,Members Expenses - Travel,28/10/2014,dpc000209,16.90
Lancaster City Council,30UH,Virgin Trains,Resources,Use Of Public Tpt - Officers,04/11/2014,fpc000067,23.10
Lancaster City Council,30UH,Virgin Trains,Health & Housing,Materials - General,19/11/2014,spc000635,101.15
Lancaster City Council,30UH,Virgin Trains,Health & Housing,Materials - General,02/12/2014,spc000665,-13.95
Lancaster City Council,30UH,Virgin Trains,Health & Housing,Use Of Public Tpt - Officers,01/10/2014,bpc001784,46.80
Lancaster City Council,30UH,Virgin Trains,Health & Housing,Use Of Public Tpt - Officers,04/11/2014,bpc001953,29.10
Lancaster City Council,30UH,Virgin Trains,Health & Housing,Use Of Public Tpt - Officers,20/11/2014,bpc001996,14.60
Lancaster City Council,30UH,Virgin Trains,Governance,Members Expenses - Travel,07/10/2014,dpc000200,9.60
Lancaster City Council,30UH,Virgin Trains,Governance,Member - Training,12/11/2014,dpc000218,20.80
Lancaster City Council,30UH,Virgin Trains,Governance,Member - Training,12/12/2014,dpc000229,13.10
Lancaster City Council,30UH,Virgin Trains,Governance,Service Training Budget,13/10/2014,dpc000203,8.60
Lancaster City Council,30UH,Virgin Trains,Governance,Service Training Budget,27/10/2014,dpc000206,23.70
Lancaster City Council,30UH,Virgin Trains,Governance,Service Training Budget,27/10/2014,dpc000207,8.60
Lancaster City Council,30UH,Virgin Trains,Governance,Service Training Budget,10/12/2014,dpc000226,161.80
Lancaster City Council,30UH,Virgin Trains,Governance,Use Of Public Tpt - Officers,08/10/2014,dpc000202,9.60
Lancaster City Council,30UH,Virgin Trains,Resources,Service Training Budget,04/11/2014,fpc000066,18.20
Lancaster City Council,30UH,Virgin Trains,Resources,Use Of Public Tpt - Officers,08/12/2014,fpc000078,16.90
Lancaster City Council,30UH,Virgin Trains,Health & Housing,Equipment and Tools - General,17/11/2014,spc000628,191.70
Lancaster City Council,30UH,Virgin Trains,Health & Housing,Materials - General,02/12/2014,spc000664,-62.60
Lancaster City Council,30UH,Virgin Trains,Health & Housing,Services - Civil Contingencies,29/10/2014,spc000587,3.00
Lancaster City Council,30UH,Virgin Trains,Resources,Use Of Public Tpt - Officers,01/10/2014,jpc000217,23.10
Lancaster City Council,30UH,Virgin Trains,Resources,Use Of Public Tpt - Officers,06/10/2014,jpc000221,18.00
Lancaster City Council,30UH,Virgin Trains,Resources,Use Of Public Tpt - Officers,06/10/2014,jpc000223,17.30
Lancaster City Council,30UH,Virgin Trains,Resources,Use Of Public Tpt - Officers,08/10/2014,jpc000227,15.40
Lancaster City Council,30UH,Virgin Trains,Resources,Use Of Public Tpt - Officers,10/10/2014,jpc000230,23.10
Lancaster City Council,30UH,Virgin Trains,Resources,Use Of Public Tpt - Officers,10/11/2014,jpc000258,8.60
Lancaster City Council,30UH,Virgin Trains,Office of the Chief Executive,Use Of Public Tpt - Officers,11/11/2014,mpc000025,16.90
Lancaster City Council,30UH,Virgin Trains,Governance,Service Training Budget,05/12/2014,dpc000225,16.90
Lancaster City Council,30UH,Vistaprint,Health & Housing,Materials - General,11/11/2014,spc000617,8.05
Lancaster City Council,30UH,Vivomed,Health & Housing,Equipment and Tools - General,04/11/2014,bpc001951,102.90
Lancaster City Council,30UH,West Coast glass,Health & Housing,Sanctuary Scheme,01/12/2014,spc000659,11.99
Lancaster City Council,30UH,West Coast glass,Health & Housing,Materials - General,17/10/2014,spc000569,29.48
Lancaster City Council,30UH,West Coast glass,Health & Housing,R & M - Buildings,17/12/2014,spc000697,64.13
Lancaster City Council,30UH,West Coast Trains,Health & Housing,Tenants Participation,17/12/2014,hpc000164,30.00
Lancaster City Council,30UH,West Coast Trains,Health & Housing,Service Training Budget,06/10/2014,spc000552,9.50
Lancaster City Council,30UH,West Coast Trains Ltd,Regeneration and Planning,Use Of Public Tpt - Officers,07/10/2014,npc000382,64.30
Lancaster City Council,30UH,West Coast Trains Ltd,Health & Housing,Equipment and Tools - General,17/11/2014,spc000629,7.92
Lancaster City Council,30UH,West Coast Trains Ltd,Regeneration and Planning,Subsistence,07/10/2014,npc000383,7.92
Lancaster City Council,30UH,West Coast Trains Ltd ,Regeneration and Planning,Subsistence,25/11/2014,npc000456,15.83
Lancaster City Council,30UH,WF Elecrical,Resources,R & M - Buildings,28/11/2014,ppc000208,17.76
Lancaster City Council,30UH,WF Electrical,Resources,R & M - Buildings,14/11/2014,ppc000190,117.62
Lancaster City Council,30UH,WF Electrical,Resources,R & M - Buildings,14/11/2014,ppc000192,50.48
Lancaster City Council,30UH,WF Ellectrical,Resources,R & M - Buildings,06/11/2014,ppc000186,270.10
Lancaster City Council,30UH,WF Rexel,Environmental Services,Materials - General,18/11/2014,26363,31.93
Lancaster City Council,30UH,Whittakers Embroidery,Health & Housing,Clothing & Uniforms,03/11/2014,bpc001916,70.70
Lancaster City Council,30UH,Whittakers Embroidery,Health & Housing,Clothing & Uniforms,18/12/2014,bpc002183,128.55
Lancaster City Council,30UH,WH Smith,Regeneration and Planning,Printing & Stationery,01/12/2014,26751,18.55
Lancaster City Council,30UH,WH Smith,Office of the Chief Executive,Printing & Stationery,13/10/2014,mpc000023,4.16
Lancaster City Council,30UH,WH Smith,Office of the Chief Executive,Sundry Expenses,30/10/2014,mpc000024,7.01
Lancaster City Council,30UH,Wickes,Health & Housing,Equipment and Tools - General,06/10/2014,bpc001799,14.95
Lancaster City Council,30UH,Wickes,Environmental Services,Equipment and Tools - General,16/10/2014,25866,153.27
Lancaster City Council,30UH,Wild and Wolf Ltd,Environmental Services,Materials For Resale,24/10/2014,25986,556.74
Lancaster City Council,30UH,Wilkinsons,Health & Housing,Tenants Participation,20/11/2014,hpc000149,27.91
Lancaster City Council,30UH,Wilkinsons,Regeneration and Planning,Long Service Awards,28/11/2014,26541,125.00
Lancaster City Council,30UH,Wilkinsons,Resources,Printing & Stationery,20/10/2014,ppc000179,2.50
Lancaster City Council,30UH,Wilkinsons,Resources,R & M - Buildings,14/10/2014,ppc000176,7.42
Lancaster City Council,30UH,Wilkinsons,Resources,R & M - Buildings,21/11/2014,ppc000195,15.36
Lancaster City Council,30UH,Wilkinsons,Health & Housing,R & M - Buildings,13/11/2014,bpc001990,-9.38
Lancaster City Council,30UH,Wilkinsons,Health & Housing,R & M - Buildings,15/12/2014,bpc002159,12.29
Lancaster City Council,30UH,Wilkinsons,Governance,Remembrance Day,06/11/2014,dpc000213,4.17
Lancaster City Council,30UH,Wilkinsons,Health & Housing,Printing & Stationery,10/11/2014,bpc001970,2.00
Lancaster City Council,30UH,Wilkinsons,Resources,R & M - Buildings,14/11/2014,ppc000189,23.20
Lancaster City Council,30UH,Wilkinsons,Resources,R & M - Buildings,14/11/2014,ppc000191,4.92
Lancaster City Council,30UH,Wm Morrison,Environmental Services,Office Equipment,02/10/2014,25672,18.33
Lancaster City Council,30UH,Wm Morrison,Environmental Services,Office Equipment,02/10/2014,25673,-12.50
Lancaster City Council,30UH,Woodchester Group,Health & Housing,Services - General,21/11/2014,bpc002022,307.90
Lancaster City Council,30UH,"www,amazon.co.uk",Health & Housing,Materials - General,12/11/2014,bpc001975,7.30
Lancaster City Council,30UH,www.amazon.co.uk,Health & Housing,Equipment and Tools - General,09/10/2014,bpc001816,11.07
Lancaster City Council,30UH,www.amazon.co.uk,Health & Housing,Equipment and Tools - General,09/10/2014,bpc001827,13.80
Lancaster City Council,30UH,www.amazon.co.uk,Health & Housing,Equipment and Tools - General,09/10/2014,bpc001831,6.27
Lancaster City Council,30UH,www.amazon.co.uk,Health & Housing,Equipment and Tools - General,11/12/2014,bpc002133,275.87
Lancaster City Council,30UH,www.amazon.co.uk,Health & Housing,Equipment and Tools - General,11/12/2014,bpc002135,16.43
Lancaster City Council,30UH,www.amazon.co.uk,Health & Housing,Equipment and Tools - General,11/12/2014,bpc002137,14.82
Lancaster City Council,30UH,www.amazon.co.uk,Health & Housing,Materials For Resale,09/10/2014,bpc001819,-11.08
Lancaster City Council,30UH,www.amazon.co.uk,Health & Housing,Materials - General,09/10/2014,bpc001825,11.91
Lancaster City Council,30UH,www.amazon.co.uk,Health & Housing,Materials - General,09/10/2014,bpc001828,28.52
Lancaster City Council,30UH,www.amazon.co.uk,Health & Housing,Materials - General,09/10/2014,bpc001829,1.37
Lancaster City Council,30UH,www.amazon.co.uk,Health & Housing,Materials - General,09/10/2014,bpc001830,11.67
Lancaster City Council,30UH,www.amazon.co.uk,Health & Housing,Materials - General,12/11/2014,bpc001976,5.82
Lancaster City Council,30UH,www.amazon.co.uk,Health & Housing,Printing & Stationery,09/10/2014,bpc001813,1.67
Lancaster City Council,30UH,www.amazon.co.uk,Health & Housing,Printing & Stationery,09/10/2014,bpc001820,4.10
Lancaster City Council,30UH,www.amazon.co.uk,Health & Housing,Printing & Stationery,09/10/2014,bpc001821,2.02
Lancaster City Council,30UH,www.amazon.co.uk,Health & Housing,Printing & Stationery,09/10/2014,bpc001823,2.33
Lancaster City Council,30UH,www.amazon.co.uk,Health & Housing,Printing & Stationery,09/10/2014,bpc001826,19.41
Lancaster City Council,30UH,www.amazon.co.uk,Health & Housing,Printing & Stationery,12/11/2014,bpc001977,3.35
Lancaster City Council,30UH,www.amazon.co.uk,Health & Housing,Printing & Stationery,12/11/2014,bpc001978,6.91
Lancaster City Council,30UH,www.amazon.co.uk,Health & Housing,Printing & Stationery,12/11/2014,bpc001979,32.02
Lancaster City Council,30UH,www.amazon.co.uk,Health & Housing,Printing & Stationery,11/12/2014,bpc002132,2.24
Lancaster City Council,30UH,www.amazon.co.uk,Health & Housing,Printing & Stationery,11/12/2014,bpc002134,1.49
Lancaster City Council,30UH,www.amazon.co.uk,Health & Housing,Printing & Stationery,11/12/2014,bpc002136,1.62
Lancaster City Council,30UH,www.Newitts.com,Health & Housing,Grants,01/10/2014,bpc001787,571.09
Lancaster City Council,30UH,www.PhysicalCompany.co,Health & Housing,Equipment and Tools - General,17/12/2014,bpc002177,-25.00
Lancaster City Council,30UH,YESSS electrical,Health & Housing,Contracted Services,19/11/2014,spc000636,1647.98
